Workbook

Sheet 入力部分
A1: 露出高推定モデル（混合粒径対応） | E1: バージョン1.0 β
A2: ファイル名 | B2: rosyutsudaka miyagawa-model ver1.0 β
C4: 黄色く塗った箇所を入力してください | F4: 入力値に基づく粒径加積曲線 → | I4: =D11+D10+D9+D8+D7 -> 1 | J4: 500
I5: =D11+D10+D9+D8 -> 0.7 | J5: 256
B6: i | C6: 粒径範囲※ | D6: 各区分の存在割合F（i） | E6: ←この部分は入力必須です | I6: =D11+D10+D9 -> 0.4 | J6: 64
B7: F(1) | C7: 256mm～ | D7: 0.3 | I7: =D10+D11 -> 0.2 | J7: 16
B8: F(2) | C8: 64～256mm | D8: 0.3 | I8: =D11 -> 0.1 | J8: 2
B9: F(3) | C9: 16～64mm | D9: 0.2 | I9: 0 | J9: 1
B10: F(4) | C10: 2～16mm | D10: 0.1
B11: F(5) | C11: ～2mm | D11: 0.1
B12: 計 | D12: =SUM(D7:D11) -> 1 | E12: =IF(D12=1,"o.k.","計が1になるように入力してください") -> o.k.
C14: 青く塗った箇所は自分で設定したい場合に入力してください | H14: 計算で使う部分（自分で設定しない場合は、自動で設定されます）
B16: i | C16: 粒径範囲※ | D16: 各区分の代表粒径 | H16: i | I16: 各区分の代表粒径 mm
B17: F(1) | C17: 256mm～ | E17: ←巨礫（目安：280mm） | H17: F(1) | I17: =IF(入力部分!D17=0,280,入力部分!D17) -> 280
B18: F(2) | C18: 64～256mm | E18: ←大礫（目安：160mm） | H18: F(2) | I18: =IF(入力部分!D18=0,160,入力部分!D18) -> 160
B19: F(3) | C19: 16～64mm | E19: ←中礫（目安：50mm） | H19: F(3) | I19: =IF(入力部分!D19=0,40,入力部分!D19) -> 40
B20: F(4) | C20: 2～16mm | E20: ←砂利（目安：10mm） | F20: ←露出高にカウントしない | H20: F(4)
B21: F(5) | C21: ～2mm | E21: ←砂（目安：1mm） | F21: ←露出高にカウントしない | H21: F(5)
B24: i | C24: 粒径範囲※ | D24: 各区分の代表高さ Si | E24: ←代表粒径の0.5倍が目安 | H24: i | I24: 各区分の代表高さ Si mm
B25: F(1) | C25: 256mm～ | E25: ←巨礫 | H25: F(1) | I25: =IF(入力部分!D25=0,IF(入力部分!D17=0,入力部分!I17*0.5,入力部分!D17*0.5), 入力部分!D25) -> 140
B26: F(2) | C26: 64～256mm | E26: ←大礫 | H26: F(2) | I26: =IF(入力部分!D26=0,IF(入力部分!D18=0,入力部分!I18*0.5,入力部分!D18*0.5), 入力部分!D26) -> 80
B27: F(3) | C27: 16～64mm | E27: ←中礫 | H27: F(3) | I27: =IF(入力部分!D27=0,IF(入力部分!D19=0,入力部分!I19*0.5,入力部分!D19*0.5), 入力部分!D27) -> 20
B28: F(4) | C28: 2～16mm | E28: ←砂利 | F28: ←露出高にカウントしない | H28: F(4)
B29: F(5) | C29: ～2mm | E29: ←砂 | F29: ←露出高にカウントしない | H29: F(5)
B32: i | C32: 粒径範囲※ | D32: 各区分の標準偏差σ | E32: ←代表粒径の0.3倍が目安 | H32: i | I32: 各区分の標準偏差σ
B33: F(1) | C33: 256mm～ | E33: ←巨礫 | H33: F(1) | I33: =IF(入力部分!D33=0,IF(入力部分!D17=0,350*0.3,入力部分!D17*0.3), 入力部分!D33) -> 105
B34: F(2) | C34: 64～256mm | E34: ←大礫 | H34: F(2) | I34: =IF(入力部分!D34=0,IF(入力部分!D18=0,160*0.3,入力部分!D18*0.3), 入力部分!D34) -> 48
B35: F(3) | C35: 16～64mm | E35: ←中礫 | H35: F(3) | I35: =IF(入力部分!D35=0,IF(入力部分!D19=0,50*0.3,入力部分!D19*0.3), 入力部分!D35) -> 15
B36: F(4) | C36: 2～16mm | E36: ←砂利 | F36: ←露出高にカウントしない | H36: F(4)
B37: F(5) | C37: ～2mm | E37: ←砂 | F37: ←露出高にカウントしない | H37: F(5)
B40: ※ | C40: Wentworthの粒径区分を参照 | H40: i | I40: ゼロ点補正
C41: boulders | D41: 257mm～ | H41: F(1) | I41: =0.5*入力部分!I25-(0.5*(入力部分!I25*入力部分!D7+入力部分!I26*入力部分!D8+入力部分!I27*入力部分!D9)/(入力部分!D7+入力部分!D8+入力部分!D9)) -> 26.25
C42: cobbles | D42: 64～256mm | H42: F(2) | I42: =0.5*入力部分!I26-(0.5*(入力部分!I25*入力部分!D7+入力部分!I26*入力部分!D8+入力部分!I27*入力部分!D9)/(入力部分!D7+入力部分!D8+入力部分!D9)) -> -3.75
C43: pebbles | D43: 16～64mm | E43: ↑露出高にカウントした範囲 | H43: F(3) | I43: =0.5*入力部分!I27-(0.5*(入力部分!I25*入力部分!D7+入力部分!I26*入力部分!D8+入力部分!I27*入力部分!D9)/(入力部分!D7+入力部分!D8+入力部分!D9)) -> -33.75
C44: gravel | D44: 2～16mm | H44: F(4)
C45: sand | D45: ～2mm | H45: F(5)

Sheet 出力部分
A1: 露出高推定モデル（混合粒径対応） | D1: バージョン1.0 β | K1: F（1）の分布 | M1: P(x)の累積値 | N1: xの平均値 | P1: F（2）の分布 | R1: P(x)の累積値 | S1: xの平均値 | U1: F（3）の分布 | W1: P(x)の累積値 | X1: xの平均値
A2: ファイル名 | B2: rosyutsudaka miyagawa-model ver1.0 β | M2: =SUM(M6:M506) -> 0.9095006059 | N2: =SUM(N6:N506) -> 144.3307626 | R2: =SUM(R6:R506) -> 0.800802716 | S2: =SUM(S6:S506) -> 45.44966733 | W2: =SUM(W6:W506) -> 0.7582690677 | X2: =SUM(X6:X506) -> 12.26812988
F4: 混合粒径における露出高 | H4: 露出高 | I4: 露出高がxの確率 | L4: 露出高 | M4: 露出高がxの確率 | Q4: 露出高 | R4: 露出高がxの確率 | V4: 露出高 | W4: 露出高がxの確率
B5: 露出高分布 | F5: 平均値 mm | G5: P(x)の累積値（<1） | H5: ｘ mm | I5: P（x） | L5: x mm | M5: p(x) | N5: x*p(x) | Q5: x mm | R5: p(x) | S5: x*p(x) | V5: x mm | W5: p(x) | X5: x*p(x)
F6: =(入力部分!D7*(N2-入力部分!I41)+入力部分!D8*(S2-入力部分!I42)+入力部分!D9*(X2-入力部分!I43))/(入力部分!D7+入力部分!D8+入力部分!D9) -> 74.23469368 | G6: =SUM(I6:I506) -> 0.8309310127 | H6: 0 | I6: =(入力部分!D$7*M6+入力部分!D$8*R6+入力部分!D$9*W6)/(入力部分!D$7+入力部分!D$8+入力部分!D$9) -> 0.008114377301 | L6: 0 | M6: =1/入力部分!I$33/(2*3.14)^0.5*EXP(-1/2*((L6-入力部分!I$25)/入力部分!I$33)^2) -> 0.001562396796 | N6: =L6*$M6 -> 0 | Q6: 0 | R6: =1/入力部分!I$34/(2*3.14)^0.5*EXP(-1/2*((Q6-入力部分!I$26/2)/入力部分!I$34)^2) -> 0.005874653359 | S6: =Q6*$R6 -> 0 | V6: 0 | W6: =1/入力部分!$I$35/(2*3.14)^0.5*EXP(-1/2*((V6-入力部分!$I$27/2)/入力部分!$I$35)^2) -> 0.02130193397 | X6: =V6*$W6 -> 0
H7: 1 | I7: =(入力部分!D$7*M7+入力部分!D$8*R7+入力部分!D$9*W7)/(入力部分!D$7+入力部分!D$8+入力部分!D$9) -> 0.008389599965 | L7: 1 | M7: =1/入力部分!I$33/(2*3.14)^0.5*EXP(-1/2*((L7-入力部分!I$25)/入力部分!I$33)^2) -> 0.001582291497 | N7: =L7*$M7 -> 0.001582291497 | Q7: 1 | R7: =1/入力部分!I$34/(2*3.14)^0.5*EXP(-1/2*((Q7-入力部分!I$26/2)/入力部分!I$34)^2) -> 0.005976237282 | S7: =Q7*$R7 -> 0.005976237282 | V7: 1 | W7: =1/入力部分!$I$35/(2*3.14)^0.5*EXP(-1/2*((V7-入力部分!$I$27/2)/入力部分!$I$35)^2) -> 0.02222060669 | X7: =V7*$W7 -> 0.02222060669
H8: 2 | I8: =(入力部分!D$7*M8+入力部分!D$8*R8+入力部分!D$9*W8)/(入力部分!D$7+入力部分!D$8+入力部分!D$9) -> 0.008648740086 | L8: 2 | M8: =1/入力部分!I$33/(2*3.14)^0.5*EXP(-1/2*((L8-入力部分!I$25)/入力部分!I$33)^2) -> 0.001602294187 | N8: 0.003204588374 | Q8: 2 | R8: =1/入力部分!I$34/(2*3.14)^0.5*EXP(-1/2*((Q8-入力部分!I$26/2)/入力部分!I$34)^2) -> 0.00607693965 | S8: 0.0121538793 | V8: 2 | W8: =1/入力部分!$I$35/(2*3.14)^0.5*EXP(-1/2*((V8-入力部分!$I$27/2)/入力部分!$I$35)^2) -> 0.02307610959 | X8: 0.04615221918
H9: 3 | I9: =(入力部分!D$7*M9+入力部分!D$8*R9+入力部分!D$9*W9)/(入力部分!D$7+入力部分!D$8+入力部分!D$9) -> 0.008889216757 | L9: 3 | M9: =1/入力部分!I$33/(2*3.14)^0.5*EXP(-1/2*((L9-入力部分!I$25)/入力部分!I$33)^2) -> 0.00162240258 | N9: 0.004867207739 | Q9: 3 | R9: =1/入力部分!I$34/(2*3.14)^0.5*EXP(-1/2*((Q9-入力部分!I$26/2)/入力部分!I$34)^2) -> 0.006176657478 | S9: 0.01852997243 | V9: 3 | W9: =1/入力部分!$I$35/(2*3.14)^0.5*EXP(-1/2*((V9-入力部分!$I$27/2)/入力部分!$I$35)^2) -> 0.02385827694 | X9: 0.07157483083
H10: 4 | I10: =(入力部分!D$7*M10+入力部分!D$8*R10+入力部分!D$9*W10)/(入力部分!D$7+入力部分!D$8+入力部分!D$9) -> 0.009108605207 | L10: 4 | M10: =1/入力部分!I$33/(2*3.14)^0.5*EXP(-1/2*((L10-入力部分!I$25)/入力部分!I$33)^2) -> 0.001642614331 | N10: 0.006570457324 | Q10: 4 | R10: =1/入力部分!I$34/(2*3.14)^0.5*EXP(-1/2*((Q10-入力部分!I$26/2)/入力部分!I$34)^2) -> 0.006275287357 | S10: 0.02510114943 | V10: 4 | W10: =1/入力部分!$I$35/(2*3.14)^0.5*EXP(-1/2*((V10-入力部分!$I$27/2)/入力部分!$I$35)^2) -> 0.0245575683 | X10: 0.09823027319
H11: 5 | I11: =(入力部分!D$7*M11+入力部分!D$8*R11+入力部分!D$9*W11)/(入力部分!D$7+入力部分!D$8+入力部分!D$9) -> 0.00930468513 | L11: 5 | M11: =1/入力部分!I$33/(2*3.14)^0.5*EXP(-1/2*((L11-入力部分!I$25)/入力部分!I$33)^2) -> 0.001662927039 | N11: 0.008314635197 | Q11: 5 | R11: =1/入力部分!I$34/(2*3.14)^0.5*EXP(-1/2*((Q11-入力部分!I$26/2)/入力部分!I$34)^2) -> 0.006372725633 | S11: 0.03186362817 | V11: 5 | W11: =1/入力部分!$I$35/(2*3.14)^0.5*EXP(-1/2*((V11-入力部分!$I$27/2)/入力部分!$I$35)^2) -> 0.02516526151 | X11: 0.1258263076
H12: 6 | I12: =(入力部分!D$7*M12+入力部分!D$8*R12+入力部分!D$9*W12)/(入力部分!D$7+入力部分!D$8+入力部分!D$9) -> 0.009475485941 | L12: 6 | M12: =1/入力部分!I$33/(2*3.14)^0.5*EXP(-1/2*((L12-入力部分!I$25)/入力部分!I$33)^2) -> 0.001683338246 | N12: 0.01010002947 | Q12: 6 | R12: =1/入力部分!I$34/(2*3.14)^0.5*EXP(-1/2*((Q12-入力部分!I$26/2)/入力部分!I$34)^2) -> 0.006468868585 | S12: 0.03881321151 | V12: 6 | W12: =1/入力部分!$I$35/(2*3.14)^0.5*EXP(-1/2*((V12-入力部分!$I$27/2)/入力部分!$I$35)^2) -> 0.02567363352 | X12: 0.1540418011
H13: 7 | I13: =(入力部分!D$7*M13+入力部分!D$8*R13+入力部分!D$9*W13)/(入力部分!D$7+入力部分!D$8+入力部分!D$9) -> 0.009619327641 | L13: 7 | M13: =1/入力部分!I$33/(2*3.14)^0.5*EXP(-1/2*((L13-入力部分!I$25)/入力部分!I$33)^2) -> 0.001703845434 | N13: 0.01192691804 | Q13: 7 | R13: =1/入力部分!I$34/(2*3.14)^0.5*EXP(-1/2*((Q13-入力部分!I$26/2)/入力部分!I$34)^2) -> 0.006563612602 | S13: 0.04594528821 | V13: 7 | W13: =1/入力部分!$I$35/(2*3.14)^0.5*EXP(-1/2*((V13-入力部分!$I$27/2)/入力部分!$I$35)^2) -> 0.02607612351 | X13: 0.1825328646
H14: 8 | I14: =(入力部分!D$7*M14+入力部分!D$8*R14+入力部分!D$9*W14)/(入力部分!D$7+入力部分!D$8+入力部分!D$9) -> 0.009734856107 | L14: 8 | M14: =1/入力部分!I$33/(2*3.14)^0.5*EXP(-1/2*((L14-入力部分!I$25)/入力部分!I$33)^2) -> 0.00172444603 | N14: 0.01379556824 | Q14: 8 | R14: =1/入力部分!I$34/(2*3.14)^0.5*EXP(-1/2*((Q14-入力部分!I$26/2)/入力部分!I$34)^2) -> 0.006656854366 | S14: 0.05325483493 | V14: 8 | W14: =1/入力部分!$I$35/(2*3.14)^0.5*EXP(-1/2*((V14-入力部分!$I$27/2)/入力部分!$I$35)^2) -> 0.02636747383 | X14: 0.2109397907
H15: 9 | I15: =(入力部分!D$7*M15+入力部分!D$8*R15+入力部分!D$9*W15)/(入力部分!D$7+入力部分!D$8+入力部分!D$9) -> 0.009821071728 | L15: 9 | M15: =1/入力部分!I$33/(2*3.14)^0.5*EXP(-1/2*((L15-入力部分!I$25)/入力部分!I$33)^2) -> 0.001745137405 | N15: 0.01570623664 | Q15: 9 | R15: =1/入力部分!I$34/(2*3.14)^0.5*EXP(-1/2*((Q15-入力部分!I$26/2)/入力部分!I$34)^2) -> 0.006748491042 | S15: 0.06073641938 | V15: 9 | W15: =1/入力部分!$I$35/(2*3.14)^0.5*EXP(-1/2*((V15-入力部分!$I$27/2)/入力部分!$I$35)^2) -> 0.02654384424 | X15: 0.2388945982
H16: 10 | I16: =(入力部分!D$7*M16+入力部分!D$8*R16+入力部分!D$9*W16)/(入力部分!D$7+入力部分!D$8+入力部分!D$9) -> 0.009877350536 | L16: 10 | M16: =1/入力部分!I$33/(2*3.14)^0.5*EXP(-1/2*((L16-入力部分!I$25)/入力部分!I$33)^2) -> 0.001765916871 | N16: 0.01765916871 | Q16: 10 | R16: =1/入力部分!I$34/(2*3.14)^0.5*EXP(-1/2*((Q16-入力部分!I$26/2)/入力部分!I$34)^2) -> 0.006838420458 | S16: 0.06838420458 | V16: 10 | W16: =1/入力部分!$I$35/(2*3.14)^0.5*EXP(-1/2*((V16-入力部分!$I$27/2)/入力部分!$I$35)^2) -> 0.02660289615 | X16: 0.2660289615
H17: 11 | I17: =(入力部分!D$7*M17+入力部分!D$8*R17+入力部分!D$9*W17)/(入力部分!D$7+入力部分!D$8+入力部分!D$9) -> 0.009903457179 | L17: 11 | M17: =1/入力部分!I$33/(2*3.14)^0.5*EXP(-1/2*((L17-入力部分!I$25)/入力部分!I$33)^2) -> 0.001786781686 | N17: 0.01965459855 | Q17: 11 | R17: =1/入力部分!I$34/(2*3.14)^0.5*EXP(-1/2*((Q17-入力部分!I$26/2)/入力部分!I$34)^2) -> 0.006926541297 | S17: 0.07619195427 | V17: 11 | W17: =1/入力部分!$I$35/(2*3.14)^0.5*EXP(-1/2*((V17-入力部分!$I$27/2)/入力部分!$I$35)^2) -> 0.02654384424 | X17: 0.2919822866
H18: 12 | I18: =(入力部分!D$7*M18+入力部分!D$8*R18+入力部分!D$9*W18)/(入力部分!D$7+入力部分!D$8+入力部分!D$9) -> 0.009899549333 | L18: 12 | M18: =1/入力部分!I$33/(2*3.14)^0.5*EXP(-1/2*((L18-入力部分!I$25)/入力部分!I$33)^2) -> 0.001807729051 | N18: 0.02169274862 | Q18: 12 | R18: =1/入力部分!I$34/(2*3.14)^0.5*EXP(-1/2*((Q18-入力部分!I$26/2)/入力部分!I$34)^2) -> 0.007012753283 | S18: 0.08415303939 | V18: 12 | W18: =1/入力部分!$I$35/(2*3.14)^0.5*EXP(-1/2*((V18-入力部分!$I$27/2)/入力部分!$I$35)^2) -> 0.02636747383 | X18: 0.316409686
H19: 13 | I19: =(入力部分!D$7*M19+入力部分!D$8*R19+入力部分!D$9*W19)/(入力部分!D$7+入力部分!D$8+入力部分!D$9) -> 0.009866173434 | L19: 13 | M19: =1/入力部分!I$33/(2*3.14)^0.5*EXP(-1/2*((L19-入力部分!I$25)/入力部分!I$33)^2) -> 0.001828756112 | N19: 0.02377382946 | Q19: 13 | R19: =1/入力部分!I$34/(2*3.14)^0.5*EXP(-1/2*((Q19-入力部分!I$26/2)/入力部分!I$34)^2) -> 0.007096957371 | S19: 0.09226044582 | V19: 13 | W19: =1/入力部分!$I$35/(2*3.14)^0.5*EXP(-1/2*((V19-入力部分!$I$27/2)/入力部分!$I$35)^2) -> 0.02607612351 | X19: 0.3389896056
H20: 14 | I20: =(入力部分!D$7*M20+入力部分!D$8*R20+入力部分!D$9*W20)/(入力部分!D$7+入力部分!D$8+入力部分!D$9) -> 0.009804251839 | L20: 14 | M20: =1/入力部分!I$33/(2*3.14)^0.5*EXP(-1/2*((L20-入力部分!I$25)/入力部分!I$33)^2) -> 0.001849859959 | N20: 0.02589803943 | Q20: 14 | R20: =1/入力部分!I$34/(2*3.14)^0.5*EXP(-1/2*((Q20-入力部分!I$26/2)/入力部分!I$34)^2) -> 0.007179055934 | S20: 0.1005067831 | V20: 14 | W20: =1/入力部分!$I$35/(2*3.14)^0.5*EXP(-1/2*((V20-入力部分!$I$27/2)/入力部分!$I$35)^2) -> 0.02567363352 | X20: 0.3594308692
H21: 15 | I21: =(入力部分!D$7*M21+入力部分!D$8*R21+入力部分!D$9*W21)/(入力部分!D$7+入力部分!D$8+入力部分!D$9) -> 0.009715061847 | L21: 15 | M21: =1/入力部分!I$33/(2*3.14)^0.5*EXP(-1/2*((L21-入力部分!I$25)/入力部分!I$33)^2) -> 0.001871037629 | N21: 0.02806556443 | Q21: 15 | R21: =1/入力部分!I$34/(2*3.14)^0.5*EXP(-1/2*((Q21-入力部分!I$26/2)/入力部分!I$34)^2) -> 0.007258952954 | S21: 0.1088842943 | V21: 15 | W21: =1/入力部分!$I$35/(2*3.14)^0.5*EXP(-1/2*((V21-入力部分!$I$27/2)/入力部分!$I$35)^2) -> 0.02516526151 | X21: 0.3774789227
H22: 16 | I22: =(入力部分!D$7*M22+入力部分!D$8*R22+入力部分!D$9*W22)/(入力部分!D$7+入力部分!D$8+入力部分!D$9) -> 0.009600207188 | L22: 16 | M22: =1/入力部分!I$33/(2*3.14)^0.5*EXP(-1/2*((L22-入力部分!I$25)/入力部分!I$33)^2) -> 0.001892286101 | N22: 0.03027657762 | Q22: 16 | R22: =1/入力部分!I$34/(2*3.14)^0.5*EXP(-1/2*((Q22-入力部分!I$26/2)/入力部分!I$34)^2) -> 0.007336554204 | S22: 0.1173848673 | V22: 16 | W22: =1/入力部分!$I$35/(2*3.14)^0.5*EXP(-1/2*((V22-入力部分!$I$27/2)/入力部分!$I$35)^2) -> 0.0245575683 | X22: 0.3929210927
H23: 17 | I23: =(入力部分!D$7*M23+入力部分!D$8*R23+入力部分!D$9*W23)/(入力部分!D$7+入力部分!D$8+入力部分!D$9) -> 0.009461582887 | L23: 17 | M23: =1/入力部分!I$33/(2*3.14)^0.5*EXP(-1/2*((L23-入力部分!I$25)/入力部分!I$33)^2) -> 0.001913602306 | N23: 0.03253123919 | Q23: 17 | R23: =1/入力部分!I$34/(2*3.14)^0.5*EXP(-1/2*((Q23-入力部分!I$26/2)/入力部分!I$34)^2) -> 0.007411767431 | S23: 0.1260000463 | V23: 17 | W23: =1/入力部分!$I$35/(2*3.14)^0.5*EXP(-1/2*((V23-入力部分!$I$27/2)/入力部分!$I$35)^2) -> 0.02385827694 | X23: 0.405590708
H24: 18 | I24: =(入力部分!D$7*M24+入力部分!D$8*R24+入力部分!D$9*W24)/(入力部分!D$7+入力部分!D$8+入力部分!D$9) -> 0.009301334521 | L24: 18 | M24: =1/入力部分!I$33/(2*3.14)^0.5*EXP(-1/2*((L24-入力部分!I$25)/入力部分!I$33)^2) -> 0.001934983116 | N24: 0.03482969608 | Q24: 18 | R24: =1/入力部分!I$34/(2*3.14)^0.5*EXP(-1/2*((Q24-入力部分!I$26/2)/入力部分!I$34)^2) -> 0.007484502547 | S24: 0.1347210458 | V24: 18 | W24: =1/入力部分!$I$35/(2*3.14)^0.5*EXP(-1/2*((V24-入力部分!$I$27/2)/入力部分!$I$35)^2) -> 0.02307610959 | X24: 0.4153699726
H25: 19 | I25: =(入力部分!D$7*M25+入力部分!D$8*R25+入力部分!D$9*W25)/(入力部分!D$7+入力部分!D$8+入力部分!D$9) -> 0.009121813104 | L25: 19 | M25: =1/入力部分!I$33/(2*3.14)^0.5*EXP(-1/2*((L25-入力部分!I$25)/入力部分!I$33)^2) -> 0.001956425354 | N25: 0.03717208172 | Q25: 19 | R25: =1/入力部分!I$34/(2*3.14)^0.5*EXP(-1/2*((Q25-入力部分!I$26/2)/入力部分!I$34)^2) -> 0.007554671796 | S25: 0.1435387641 | V25: 19 | W25: =1/入力部分!$I$35/(2*3.14)^0.5*EXP(-1/2*((V25-入力部分!$I$27/2)/入力部分!$I$35)^2) -> 0.02222060669 | X25: 0.4221915271
H26: 20 | I26: =(入力部分!D$7*M26+入力部分!D$8*R26+入力部分!D$9*W26)/(入力部分!D$7+入力部分!D$8+入力部分!D$9) -> 0.008925526892 | L26: 20 | M26: =1/入力部分!I$33/(2*3.14)^0.5*EXP(-1/2*((L26-入力部分!I$25)/入力部分!I$33)^2) -> 0.001977925789 | N26: 0.03955851577 | Q26: 20 | R26: =1/入力部分!I$34/(2*3.14)^0.5*EXP(-1/2*((Q26-入力部分!I$26/2)/入力部分!I$34)^2) -> 0.007622189941 | S26: 0.1524437988 | V26: 20 | W26: =1/入力部分!$I$35/(2*3.14)^0.5*EXP(-1/2*((V26-入力部分!$I$27/2)/入力部分!$I$35)^2) -> 0.02130193397 | X26: 0.4260386794
H27: 21 | I27: =(入力部分!D$7*M27+入力部分!D$8*R27+入力部分!D$9*W27)/(入力部分!D$7+入力部分!D$8+入力部分!D$9) -> 0.008715091466 | L27: 21 | M27: =1/入力部分!I$33/(2*3.14)^0.5*EXP(-1/2*((L27-入力部分!I$25)/入力部分!I$33)^2) -> 0.001999481139 | N27: 0.04198910392 | Q27: 21 | R27: =1/入力部分!I$34/(2*3.14)^0.5*EXP(-1/2*((Q27-入力部分!I$26/2)/入力部分!I$34)^2) -> 0.00768697443 | S27: 0.161426463 | V27: 21 | W27: =1/入力部分!$I$35/(2*3.14)^0.5*EXP(-1/2*((V27-入力部分!$I$27/2)/入力部分!$I$35)^2) -> 0.02033068251 | X27: 0.4269443328
H28: 22 | I28: =(入力部分!D$7*M28+入力部分!D$8*R28+入力部分!D$9*W28)/(入力部分!D$7+入力部分!D$8+入力部分!D$9) -> 0.008493179469 | L28: 22 | M28: =1/入力部分!I$33/(2*3.14)^0.5*EXP(-1/2*((L28-入力部分!I$25)/入力部分!I$33)^2) -> 0.002021088072 | N28: 0.04446393757 | Q28: 22 | R28: =1/入力部分!I$34/(2*3.14)^0.5*EXP(-1/2*((Q28-入力部分!I$26/2)/入力部分!I$34)^2) -> 0.007748945564 | S28: 0.1704768024 | V28: 22 | W28: =1/入力部分!$I$35/(2*3.14)^0.5*EXP(-1/2*((V28-入力部分!$I$27/2)/入力部分!$I$35)^2) -> 0.01931766742 | X28: 0.4249886833
H29: 23 | I29: =(入力部分!D$7*M29+入力部分!D$8*R29+入力部分!D$9*W29)/(入力部分!D$7+入力部分!D$8+入力部分!D$9) -> 0.008262471304 | L29: 23 | M29: =1/入力部分!I$33/(2*3.14)^0.5*EXP(-1/2*((L29-入力部分!I$25)/入力部分!I$33)^2) -> 0.002042743203 | N29: 0.04698309368 | Q29: 23 | R29: =1/入力部分!I$34/(2*3.14)^0.5*EXP(-1/2*((Q29-入力部分!I$26/2)/入力部分!I$34)^2) -> 0.007808026663 | S29: 0.1795846133 | V29: 23 | W29: =1/入力部分!$I$35/(2*3.14)^0.5*EXP(-1/2*((V29-入力部分!$I$27/2)/入力部分!$I$35)^2) -> 0.01827373041 | X29: 0.4202957995
H30: 24 | I30: =(入力部分!D$7*M30+入力部分!D$8*R30+入力部分!D$9*W30)/(入力部分!D$7+入力部分!D$8+入力部分!D$9) -> 0.008025608047 | L30: 24 | M30: =1/入力部分!I$33/(2*3.14)^0.5*EXP(-1/2*((L30-入力部分!I$25)/入力部分!I$33)^2) -> 0.002064443101 | N30: 0.04954663443 | Q30: 24 | R30: =1/入力部分!I$34/(2*3.14)^0.5*EXP(-1/2*((Q30-入力部分!I$26/2)/入力部分!I$34)^2) -> 0.007864144223 | S30: 0.1887394613 | V30: 24 | W30: =1/入力部分!$I$35/(2*3.14)^0.5*EXP(-1/2*((V30-入力部分!$I$27/2)/入力部分!$I$35)^2) -> 0.0172095512 | X30: 0.4130292288
H31: 25 | I31: =(入力部分!D$7*M31+入力部分!D$8*R31+入力部分!D$9*W31)/(入力部分!D$7+入力部分!D$8+入力部分!D$9) -> 0.007785147669 | L31: 25 | M31: =1/入力部分!I$33/(2*3.14)^0.5*EXP(-1/2*((L31-入力部分!I$25)/入力部分!I$33)^2) -> 0.002086184284 | N31: 0.0521546071 | Q31: 25 | R31: =1/入力部分!I$34/(2*3.14)^0.5*EXP(-1/2*((Q31-入力部分!I$26/2)/入力部分!I$34)^2) -> 0.007917228065 | S31: 0.1979307016 | V31: 25 | W31: =1/入力部分!$I$35/(2*3.14)^0.5*EXP(-1/2*((V31-入力部分!$I$27/2)/入力部分!$I$35)^2) -> 0.01613547215 | X31: 0.4033868038
H32: 26 | I32: =(入力部分!D$7*M32+入力部分!D$8*R32+入力部分!D$9*W32)/(入力部分!D$7+入力部分!D$8+入力部分!D$9) -> 0.007543525527 | L32: 26 | M32: =1/入力部分!I$33/(2*3.14)^0.5*EXP(-1/2*((L32-入力部分!I$25)/入力部分!I$33)^2) -> 0.002107963222 | N32: 0.05480704376 | Q32: 26 | R32: =1/入力部分!I$34/(2*3.14)^0.5*EXP(-1/2*((Q32-入力部分!I$26/2)/入力部分!I$34)^2) -> 0.007967211489 | S32: 0.2071474987 | V32: 26 | W32: =1/入力部分!$I$35/(2*3.14)^0.5*EXP(-1/2*((V32-入力部分!$I$27/2)/入力部分!$I$35)^2) -> 0.01506134004 | X32: 0.3915948411
H33: 27 | I33: =(入力部分!D$7*M33+入力部分!D$8*R33+入力部分!D$9*W33)/(入力部分!D$7+入力部分!D$8+入力部分!D$9) -> 0.007303019895 | L33: 27 | M33: =1/入力部分!I$33/(2*3.14)^0.5*EXP(-1/2*((L33-入力部分!I$25)/入力部分!I$33)^2) -> 0.002129776337 | N33: 0.0575039611 | Q33: 27 | R33: =1/入力部分!I$34/(2*3.14)^0.5*EXP(-1/2*((Q33-入力部分!I$26/2)/入力部分!I$34)^2) -> 0.008014031402 | S33: 0.2163788479 | V33: 27 | W33: =1/入力部分!$I$35/(2*3.14)^0.5*EXP(-1/2*((V33-入力部分!$I$27/2)/入力部分!$I$35)^2) -> 0.01399636797 | X33: 0.3779019353
H34: 28 | I34: =(入力部分!D$7*M34+入力部分!D$8*R34+入力部分!D$9*W34)/(入力部分!D$7+入力部分!D$8+入力部分!D$9) -> 0.007065723105 | L34: 28 | M34: =1/入力部分!I$33/(2*3.14)^0.5*EXP(-1/2*((L34-入力部分!I$25)/入力部分!I$33)^2) -> 0.002151620006 | N34: 0.06024536018 | Q34: 28 | R34: =1/入力部分!I$34/(2*3.14)^0.5*EXP(-1/2*((Q34-入力部分!I$26/2)/入力部分!I$34)^2) -> 0.008057628463 | S34: 0.225613597 | V34: 28 | W34: =1/入力部分!$I$35/(2*3.14)^0.5*EXP(-1/2*((V34-入力部分!$I$27/2)/入力部分!$I$35)^2) -> 0.01294901972 | X34: 0.362572552
H35: 29 | I35: =(入力部分!D$7*M35+入力部分!D$8*R35+入力部分!D$9*W35)/(入力部分!D$7+入力部分!D$8+入力部分!D$9) -> 0.006833518669 | L35: 29 | M35: =1/入力部分!I$33/(2*3.14)^0.5*EXP(-1/2*((L35-入力部分!I$25)/入力部分!I$33)^2) -> 0.00217349056 | N35: 0.06303122625 | Q35: 29 | R35: =1/入力部分!I$34/(2*3.14)^0.5*EXP(-1/2*((Q35-入力部分!I$26/2)/入力部分!I$34)^2) -> 0.008097947199 | S35: 0.2348404688 | V35: 29 | W35: =1/入力部分!$I$35/(2*3.14)^0.5*EXP(-1/2*((V35-入力部分!$I$27/2)/入力部分!$I$35)^2) -> 0.01192691804 | X35: 0.345880623
H36: 30 | I36: =(入力部分!D$7*M36+入力部分!D$8*R36+入力部分!D$9*W36)/(入力部分!D$7+入力部分!D$8+入力部分!D$9) -> 0.006608064547 | L36: 30 | M36: =1/入力部分!I$33/(2*3.14)^0.5*EXP(-1/2*((L36-入力部分!I$25)/入力部分!I$33)^2) -> 0.002195384285 | N36: 0.06586152855 | Q36: 30 | R36: =1/入力部分!I$34/(2*3.14)^0.5*EXP(-1/2*((Q36-入力部分!I$26/2)/入力部分!I$34)^2) -> 0.008134936126 | S36: 0.2440480838 | V36: 30 | W36: =1/入力部分!$I$35/(2*3.14)^0.5*EXP(-1/2*((V36-入力部分!$I$27/2)/入力部分!$I$35)^2) -> 0.01093677757 | X36: 0.3281033271
H37: 31 | I37: =(入力部分!D$7*M37+入力部分!D$8*R37+入力部分!D$9*W37)/(入力部分!D$7+入力部分!D$8+入力部分!D$9) -> 0.006390782528 | L37: 31 | M37: =1/入力部分!I$33/(2*3.14)^0.5*EXP(-1/2*((L37-入力部分!I$25)/入力部分!I$33)^2) -> 0.002217297422 | N37: 0.06873622009 | Q37: 31 | R37: =1/入力部分!I$34/(2*3.14)^0.5*EXP(-1/2*((Q37-入力部分!I$26/2)/入力部分!I$34)^2) -> 0.008168547862 | S37: 0.2532249837 | V37: 31 | W37: =1/入力部分!$I$35/(2*3.14)^0.5*EXP(-1/2*((V37-入力部分!$I$27/2)/入力部分!$I$35)^2) -> 0.009984362186 | X37: 0.3095152278
H38: 32 | I38: =(入力部分!D$7*M38+入力部分!D$8*R38+入力部分!D$9*W38)/(入力部分!D$7+入力部分!D$8+入力部分!D$9) -> 0.006182853514 | L38: 32 | M38: =1/入力部分!I$33/(2*3.14)^0.5*EXP(-1/2*((L38-入力部分!I$25)/入力部分!I$33)^2) -> 0.002239226171 | N38: 0.07165523747 | Q38: 32 | R38: =1/入力部分!I$34/(2*3.14)^0.5*EXP(-1/2*((Q38-入力部分!I$26/2)/入力部分!I$34)^2) -> 0.008198739221 | S38: 0.2623596551 | V38: 32 | W38: =1/入力部分!$I$35/(2*3.14)^0.5*EXP(-1/2*((V38-入力部分!$I$27/2)/入力部分!$I$35)^2) -> 0.00907446597 | X38: 0.290382911
H39: 33 | I39: =(入力部分!D$7*M39+入力部分!D$8*R39+入力部分!D$9*W39)/(入力部分!D$7+入力部分!D$8+入力部分!D$9) -> 0.005985218339 | L39: 33 | M39: =1/入力部分!I$33/(2*3.14)^0.5*EXP(-1/2*((L39-入力部分!I$25)/入力部分!I$33)^2) -> 0.002261166688 | N39: 0.0746185007 | Q39: 33 | R39: =1/入力部分!I$34/(2*3.14)^0.5*EXP(-1/2*((Q39-入力部分!I$26/2)/入力部分!I$34)^2) -> 0.008225471311 | S39: 0.2714405533 | V39: 33 | W39: =1/入力部分!$I$35/(2*3.14)^0.5*EXP(-1/2*((V39-入力部分!$I$27/2)/入力部分!$I$35)^2) -> 0.008210916358 | X39: 0.2709602398
H40: 34 | I40: =(入力部分!D$7*M40+入力部分!D$8*R40+入力部分!D$9*W40)/(入力部分!D$7+入力部分!D$8+入力部分!D$9) -> 0.005798583621 | L40: 34 | M40: =1/入力部分!I$33/(2*3.14)^0.5*EXP(-1/2*((L40-入力部分!I$25)/入力部分!I$33)^2) -> 0.002283115089 | N40: 0.07762591303 | Q40: 34 | R40: =1/入力部分!I$34/(2*3.14)^0.5*EXP(-1/2*((Q40-入力部分!I$26/2)/入力部分!I$34)^2) -> 0.008248709615 | S40: 0.2804561269 | V40: 34 | W40: =1/入力部分!$I$35/(2*3.14)^0.5*EXP(-1/2*((V40-入力部分!$I$27/2)/入力部分!$I$35)^2) -> 0.007396597429 | X40: 0.2514843126
H41: 35 | I41: =(入力部分!D$7*M41+入力部分!D$8*R41+入力部分!D$9*W41)/(入力部分!D$7+入力部分!D$8+入力部分!D$9) -> 0.005623432047 | L41: 35 | M41: =1/入力部分!I$33/(2*3.14)^0.5*EXP(-1/2*((L41-入力部分!I$25)/入力部分!I$33)^2) -> 0.00230506745 | N41: 0.08067736076 | Q41: 35 | R41: =1/入力部分!I$34/(2*3.14)^0.5*EXP(-1/2*((Q41-入力部分!I$26/2)/入力部分!I$34)^2) -> 0.008268424067 | S41: 0.2893948423 | V41: 35 | W41: =1/入力部分!$I$35/(2*3.14)^0.5*EXP(-1/2*((V41-入力部分!$I$27/2)/入力部分!$I$35)^2) -> 0.006633490915 | X41: 0.232172182
H42: 36 | I42: =(入力部分!D$7*M42+入力部分!D$8*R42+入力部分!D$9*W42)/(入力部分!D$7+入力部分!D$8+入力部分!D$9) -> 0.0054600364 | L42: 36 | M42: =1/入力部分!I$33/(2*3.14)^0.5*EXP(-1/2*((L42-入力部分!I$25)/入力部分!I$33)^2) -> 0.002327019808 | N42: 0.0837727131 | Q42: 36 | R42: =1/入力部分!I$34/(2*3.14)^0.5*EXP(-1/2*((Q42-入力部分!I$26/2)/入力部分!I$34)^2) -> 0.008284589113 | S42: 0.2982452081 | V42: 36 | W42: =1/入力部分!$I$35/(2*3.14)^0.5*EXP(-1/2*((V42-入力部分!$I$27/2)/入力部分!$I$35)^2) -> 0.005922732216 | X42: 0.2132183598
H43: 37 | I43: =(入力部分!D$7*M43+入力部分!D$8*R43+入力部分!D$9*W43)/(入力部分!D$7+入力部分!D$8+入力部分!D$9) -> 0.005308476611 | L43: 37 | M43: =1/入力部分!I$33/(2*3.14)^0.5*EXP(-1/2*((L43-入力部分!I$25)/入力部分!I$33)^2) -> 0.002348968162 | N43: 0.08691182199 | Q43: 37 | R43: =1/入力部分!I$34/(2*3.14)^0.5*EXP(-1/2*((Q43-入力部分!I$26/2)/入力部分!I$34)^2) -> 0.008297183774 | S43: 0.3069957996 | V43: 37 | W43: =1/入力部分!$I$35/(2*3.14)^0.5*EXP(-1/2*((V43-入力部分!$I$27/2)/入力部分!$I$35)^2) -> 0.00526467854 | X43: 0.194793106
H44: 38 | I44: =(入力部分!D$7*M44+入力部分!D$8*R44+入力部分!D$9*W44)/(入力部分!D$7+入力部分!D$8+入力部分!D$9) -> 0.005168659101 | L44: 38 | M44: =1/入力部分!I$33/(2*3.14)^0.5*EXP(-1/2*((L44-入力部分!I$25)/入力部分!I$33)^2) -> 0.002370908474 | N44: 0.090094522 | Q44: 38 | R44: =1/入力部分!I$34/(2*3.14)^0.5*EXP(-1/2*((Q44-入力部分!I$26/2)/入力部分!I$34)^2) -> 0.00830619168 | S44: 0.3156352839 | V44: 38 | W44: =1/入力部分!$I$35/(2*3.14)^0.5*EXP(-1/2*((V44-入力部分!$I$27/2)/入力部分!$I$35)^2) -> 0.004658986175 | X44: 0.1770414746
H45: 39 | I45: =(入力部分!D$7*M45+入力部分!D$8*R45+入力部分!D$9*W45)/(入力部分!D$7+入力部分!D$8+入力部分!D$9) -> 0.005040337672 | L45: 39 | M45: =1/入力部分!I$33/(2*3.14)^0.5*EXP(-1/2*((L45-入力部分!I$25)/入力部分!I$33)^2) -> 0.002392836669 | N45: 0.09332063011 | Q45: 39 | R45: =1/入力部分!I$34/(2*3.14)^0.5*EXP(-1/2*((Q45-入力部分!I$26/2)/入力部分!I$34)^2) -> 0.008311601118 | S45: 0.3241524436 | V45: 39 | W45: =1/入力部分!$I$35/(2*3.14)^0.5*EXP(-1/2*((V45-入力部分!$I$27/2)/入力部分!$I$35)^2) -> 0.004104694008 | X45: 0.1600830663
H46: 40 | I46: =(入力部分!D$7*M46+入力部分!D$8*R46+入力部分!D$9*W46)/(入力部分!D$7+入力部分!D$8+入力部分!D$9) -> 0.004923135254 | L46: 40 | M46: =1/入力部分!I$33/(2*3.14)^0.5*EXP(-1/2*((L46-入力部分!I$25)/入力部分!I$33)^2) -> 0.002414748641 | N46: 0.09658994565 | Q46: 40 | R46: =1/入力部分!I$34/(2*3.14)^0.5*EXP(-1/2*((Q46-入力部分!I$26/2)/入力部分!I$34)^2) -> 0.008313405047 | S46: 0.3325362019 | V46: 40 | W46: =1/入力部分!$I$35/(2*3.14)^0.5*EXP(-1/2*((V46-入力部分!$I$27/2)/入力部分!$I$35)^2) -> 0.003600310485 | X46: 0.1440124194
H47: 41 | I47: =(入力部分!D$7*M47+入力部分!D$8*R47+入力部分!D$9*W47)/(入力部分!D$7+入力部分!D$8+入力部分!D$9) -> 0.004816565877 | L47: 41 | M47: =1/入力部分!I$33/(2*3.14)^0.5*EXP(-1/2*((L47-入力部分!I$25)/入力部分!I$33)^2) -> 0.002436640247 | N47: 0.09990225014 | Q47: 41 | R47: =1/入力部分!I$34/(2*3.14)^0.5*EXP(-1/2*((Q47-入力部分!I$26/2)/入力部分!I$34)^2) -> 0.008311601118 | S47: 0.3407756458 | V47: 41 | W47: =1/入力部分!$I$35/(2*3.14)^0.5*EXP(-1/2*((V47-入力部分!$I$27/2)/入力部分!$I$35)^2) -> 0.003143901461 | X47: 0.1288999599
H48: 42 | I48: =(入力部分!D$7*M48+入力部分!D$8*R48+入力部分!D$9*W48)/(入力部分!D$7+入力部分!D$8+入力部分!D$9) -> 0.00472005628 | L48: 42 | M48: =1/入力部分!I$33/(2*3.14)^0.5*EXP(-1/2*((L48-入力部分!I$25)/入力部分!I$33)^2) -> 0.002458507314 | N48: 0.1032573072 | Q48: 42 | R48: =1/入力部分!I$34/(2*3.14)^0.5*EXP(-1/2*((Q48-入力部分!I$26/2)/入力部分!I$34)^2) -> 0.00830619168 | S48: 0.3488600506 | V48: 42 | W48: =1/入力部分!$I$35/(2*3.14)^0.5*EXP(-1/2*((V48-入力部分!$I$27/2)/入力部分!$I$35)^2) -> 0.002733176626 | X48: 0.1147934183
H49: 43 | I49: =(入力部分!D$7*M49+入力部分!D$8*R49+入力部分!D$9*W49)/(入力部分!D$7+入力部分!D$8+入力部分!D$9) -> 0.004632966668 | L49: 43 | M49: =1/入力部分!I$33/(2*3.14)^0.5*EXP(-1/2*((L49-入力部分!I$25)/入力部分!I$33)^2) -> 0.002480345638 | N49: 0.1066548624 | Q49: 43 | R49: =1/入力部分!I$34/(2*3.14)^0.5*EXP(-1/2*((Q49-入力部分!I$26/2)/入力部分!I$34)^2) -> 0.008297183774 | S49: 0.3567789023 | V49: 43 | W49: =1/入力部分!$I$35/(2*3.14)^0.5*EXP(-1/2*((V49-入力部分!$I$27/2)/入力部分!$I$35)^2) -> 0.002365572555 | X49: 0.1017196199
H50: 44 | I50: =(入力部分!D$7*M50+入力部分!D$8*R50+入力部分!D$9*W50)/(入力部分!D$7+入力部分!D$8+入力部分!D$9) -> 0.004554610216 | L50: 44 | M50: =1/入力部分!I$33/(2*3.14)^0.5*EXP(-1/2*((L50-入力部分!I$25)/入力部分!I$33)^2) -> 0.002502150982 | N50: 0.1100946432 | Q50: 44 | R50: =1/入力部分!I$34/(2*3.14)^0.5*EXP(-1/2*((Q50-入力部分!I$26/2)/入力部分!I$34)^2) -> 0.008284589113 | S50: 0.364521921 | V50: 44 | W50: =1/入力部分!$I$35/(2*3.14)^0.5*EXP(-1/2*((V50-入力部分!$I$27/2)/入力部分!$I$35)^2) -> 0.002038330721 | X50: 0.08968655171
H51: 45 | I51: =(入力部分!D$7*M51+入力部分!D$8*R51+入力部分!D$9*W51)/(入力部分!D$7+入力部分!D$8+入力部分!D$9) -> 0.004484270988 | L51: 45 | M51: =1/入力部分!I$33/(2*3.14)^0.5*EXP(-1/2*((L51-入力部分!I$25)/入力部分!I$33)^2) -> 0.002523919086 | N51: 0.1135763589 | Q51: 45 | R51: =1/入力部分!I$34/(2*3.14)^0.5*EXP(-1/2*((Q51-入力部分!I$26/2)/入力部分!I$34)^2) -> 0.008268424067 | S51: 0.372079083 | V51: 45 | W51: =1/入力部分!$I$35/(2*3.14)^0.5*EXP(-1/2*((V51-入力部分!$I$27/2)/入力部分!$I$35)^2) -> 0.001748569221 | X51: 0.07868561494
H52: 46 | I52: =(入力部分!D$7*M52+入力部分!D$8*R52+入力部分!D$9*W52)/(入力部分!D$7+入力部分!D$8+入力部分!D$9) -> 0.004421220044 | L52: 46 | M52: =1/入力部分!I$33/(2*3.14)^0.5*EXP(-1/2*((L52-入力部分!I$25)/入力部分!I$33)^2) -> 0.002545645659 | N52: 0.1170997003 | Q52: 46 | R52: =1/入力部分!I$34/(2*3.14)^0.5*EXP(-1/2*((Q52-入力部分!I$26/2)/入力部分!I$34)^2) -> 0.008248709615 | S52: 0.3794406423 | V52: 46 | W52: =1/入力部分!$I$35/(2*3.14)^0.5*EXP(-1/2*((V52-入力部分!$I$27/2)/入力部分!$I$35)^2) -> 0.001493347266 | X52: 0.06869397424
H53: 47 | I53: =(入力部分!D$7*M53+入力部分!D$8*R53+入力部分!D$9*W53)/(入力部分!D$7+入力部分!D$8+入力部分!D$9) -> 0.0043647296 | L53: 47 | M53: =1/入力部分!I$33/(2*3.14)^0.5*EXP(-1/2*((L53-入力部分!I$25)/入力部分!I$33)^2) -> 0.002567326386 | N53: 0.1206643401 | Q53: 47 | R53: =1/入力部分!I$34/(2*3.14)^0.5*EXP(-1/2*((Q53-入力部分!I$26/2)/入力部分!I$34)^2) -> 0.008225471311 | S53: 0.3865971516 | V53: 47 | W53: =1/入力部分!$I$35/(2*3.14)^0.5*EXP(-1/2*((V53-入力部分!$I$27/2)/入力部分!$I$35)^2) -> 0.001269721856 | X53: 0.05967692723
H54: 48 | I54: =(入力部分!D$7*M54+入力部分!D$8*R54+入力部分!D$9*W54)/(入力部分!D$7+入力部分!D$8+入力部分!D$9) -> 0.004314085142 | L54: 48 | M54: =1/入力部分!I$33/(2*3.14)^0.5*EXP(-1/2*((L54-入力部分!I$25)/入力部分!I$33)^2) -> 0.002588956926 | N54: 0.1242699324 | Q54: 48 | R54: =1/入力部分!I$34/(2*3.14)^0.5*EXP(-1/2*((Q54-入力部分!I$26/2)/入力部分!I$34)^2) -> 0.008198739221 | S54: 0.3935394826 | V54: 48 | W54: =1/入力部分!$I$35/(2*3.14)^0.5*EXP(-1/2*((V54-入力部分!$I$27/2)/入力部分!$I$35)^2) -> 0.001074796347 | X54: 0.05159022464
H55: 49 | I55: =(入力部分!D$7*M55+入力部分!D$8*R55+入力部分!D$9*W55)/(入力部分!D$7+入力部分!D$8+入力部分!D$9) -> 0.004268595518 | L55: 49 | M55: =1/入力部分!I$33/(2*3.14)^0.5*EXP(-1/2*((L55-入力部分!I$25)/入力部分!I$33)^2) -> 0.002610532916 | N55: 0.1279161129 | Q55: 49 | R55: =1/入力部分!I$34/(2*3.14)^0.5*EXP(-1/2*((Q55-入力部分!I$26/2)/入力部分!I$34)^2) -> 0.008168547862 | S55: 0.4002588452 | V55: 49 | W55: =1/入力部分!$I$35/(2*3.14)^0.5*EXP(-1/2*((V55-入力部分!$I$27/2)/入力部分!$I$35)^2) -> 0.0009057609024 | X55: 0.04438228422
H56: 50 | I56: =(入力部分!D$7*M56+入力部分!D$8*R56+入力部分!D$9*W56)/(入力部分!D$7+入力部分!D$8+入力部分!D$9) -> 0.00422760105 | L56: 50 | M56: =1/入力部分!I$33/(2*3.14)^0.5*EXP(-1/2*((L56-入力部分!I$25)/入力部分!I$33)^2) -> 0.002632049973 | N56: 0.1316024986 | Q56: 50 | R56: =1/入力部分!I$34/(2*3.14)^0.5*EXP(-1/2*((Q56-入力部分!I$26/2)/入力部分!I$34)^2) -> 0.008134936126 | S56: 0.4067468063 | V56: 50 | W56: =1/入力部分!$I$35/(2*3.14)^0.5*EXP(-1/2*((V56-入力部分!$I$27/2)/入力部分!$I$35)^2) -> 0.0007599250508 | X56: 0.03799625254
H57: 51 | I57: =(入力部分!D$7*M57+入力部分!D$8*R57+入力部分!D$9*W57)/(入力部分!D$7+入力部分!D$8+入力部分!D$9) -> 0.004190479772 | L57: 51 | M57: =1/入力部分!I$33/(2*3.14)^0.5*EXP(-1/2*((L57-入力部分!I$25)/入力部分!I$33)^2) -> 0.002653503689 | N57: 0.1353286882 | Q57: 51 | R57: =1/入力部分!I$34/(2*3.14)^0.5*EXP(-1/2*((Q57-入力部分!I$26/2)/入力部分!I$34)^2) -> 0.008097947199 | S57: 0.4129953071 | V57: 51 | W57: =1/入力部分!$I$35/(2*3.14)^0.5*EXP(-1/2*((V57-入力部分!$I$27/2)/入力部分!$I$35)^2) -> 0.0006347427578 | X57: 0.03237188065
H58: 52 | I58: =(入力部分!D$7*M58+入力部分!D$8*R58+入力部分!D$9*W58)/(入力部分!D$7+入力部分!D$8+入力部分!D$9) -> 0.004156651935 | L58: 52 | M58: =1/入力部分!I$33/(2*3.14)^0.5*EXP(-1/2*((L58-入力部分!I$25)/入力部分!I$33)^2) -> 0.002674889643 | N58: 0.1390942614 | Q58: 52 | R58: =1/入力部分!I$34/(2*3.14)^0.5*EXP(-1/2*((Q58-入力部分!I$26/2)/入力部分!I$34)^2) -> 0.008057628463 | S58: 0.4189966801 | V58: 52 | W58: =1/入力部分!$I$35/(2*3.14)^0.5*EXP(-1/2*((V58-入力部分!$I$27/2)/入力部分!$I$35)^2) -> 0.000527830583 | X58: 0.02744719031
H59: 53 | I59: =(入力部分!D$7*M59+入力部分!D$8*R59+入力部分!D$9*W59)/(入力部分!D$7+入力部分!D$8+入力部分!D$9) -> 0.004125582944 | L59: 53 | M59: =1/入力部分!I$33/(2*3.14)^0.5*EXP(-1/2*((L59-入力部分!I$25)/入力部分!I$33)^2) -> 0.002696203392 | N59: 0.1428987798 | Q59: 53 | R59: =1/入力部分!I$34/(2*3.14)^0.5*EXP(-1/2*((Q59-入力部分!I$26/2)/入力部分!I$34)^2) -> 0.008014031402 | S59: 0.4247436643 | V59: 53 | W59: =1/入力部分!$I$35/(2*3.14)^0.5*EXP(-1/2*((V59-入力部分!$I$27/2)/入力部分!$I$35)^2) -> 0.000436979585 | X59: 0.023159918
H60: 54 | I60: =(入力部分!D$7*M60+入力部分!D$8*R60+入力部分!D$9*W60)/(入力部分!D$7+入力部分!D$8+入力部分!D$9) -> 0.004096784918 | L60: 54 | M60: =1/入力部分!I$33/(2*3.14)^0.5*EXP(-1/2*((L60-入力部分!I$25)/入力部分!I$33)^2) -> 0.00271744048 | N60: 0.1467417859 | Q60: 54 | R60: =1/入力部分!I$34/(2*3.14)^0.5*EXP(-1/2*((Q60-入力部分!I$26/2)/入力部分!I$34)^2) -> 0.007967211489 | S60: 0.4302294204 | V60: 54 | W60: =1/入力部分!$I$35/(2*3.14)^0.5*EXP(-1/2*((V60-入力部分!$I$27/2)/入力部分!$I$35)^2) -> 0.000360161717 | X60: 0.01944873272
H61: 55 | I61: =(入力部分!D$7*M61+入力部分!D$8*R61+入力部分!D$9*W61)/(入力部分!D$7+入力部分!D$8+入力部分!D$9) -> 0.004069817058 | L61: 55 | M61: =1/入力部分!I$33/(2*3.14)^0.5*EXP(-1/2*((L61-入力部分!I$25)/入力部分!I$33)^2) -> 0.002738596436 | N61: 0.150622804 | Q61: 55 | R61: =1/入力部分!I$34/(2*3.14)^0.5*EXP(-1/2*((Q61-入力部分!I$26/2)/入力部分!I$34)^2) -> 0.007917228065 | S61: 0.4354475436 | V61: 55 | W61: =1/入力部分!$I$35/(2*3.14)^0.5*EXP(-1/2*((V61-入力部分!$I$27/2)/入力部分!$I$35)^2) -> 0.0002955314812 | X61: 0.01625423147
H62: 56 | I62: =(入力部分!D$7*M62+入力部分!D$8*R62+入力部分!D$9*W62)/(入力部分!D$7+入力部分!D$8+入力部分!D$9) -> 0.004044285029 | L62: 56 | M62: =1/入力部分!I$33/(2*3.14)^0.5*EXP(-1/2*((L62-入力部分!I$25)/入力部分!I$33)^2) -> 0.002759666775 | N62: 0.1545413394 | Q62: 56 | R62: =1/入力部分!I$34/(2*3.14)^0.5*EXP(-1/2*((Q62-入力部分!I$26/2)/入力部分!I$34)^2) -> 0.007864144223 | S62: 0.4403920765 | V62: 56 | W62: =1/入力部分!$I$35/(2*3.14)^0.5*EXP(-1/2*((V62-入力部分!$I$27/2)/入力部分!$I$35)^2) -> 0.0002414236187 | X62: 0.01351972265
H63: 57 | I63: =(入力部分!D$7*M63+入力部分!D$8*R63+入力部分!D$9*W63)/(入力部分!D$7+入力部分!D$8+入力部分!D$9) -> 0.00401983952 | L63: 57 | M63: =1/入力部分!I$33/(2*3.14)^0.5*EXP(-1/2*((L63-入力部分!I$25)/入力部分!I$33)^2) -> 0.002780647001 | N63: 0.158496879 | Q63: 57 | R63: =1/入力部分!I$34/(2*3.14)^0.5*EXP(-1/2*((Q63-入力部分!I$26/2)/入力部分!I$34)^2) -> 0.007808026663 | S63: 0.4450575198 | V63: 57 | W63: =1/入力部分!$I$35/(2*3.14)^0.5*EXP(-1/2*((V63-入力部分!$I$27/2)/入力部分!$I$35)^2) -> 0.0001963475843 | X63: 0.0111918123
H64: 58 | I64: =(入力部分!D$7*M64+入力部分!D$8*R64+入力部分!D$9*W64)/(入力部分!D$7+入力部分!D$8+入力部分!D$9) -> 0.003996174194 | L64: 58 | M64: =1/入力部分!I$33/(2*3.14)^0.5*EXP(-1/2*((L64-入力部分!I$25)/入力部分!I$33)^2) -> 0.002801532609 | N64: 0.1624888913 | Q64: 58 | R64: =1/入力部分!I$34/(2*3.14)^0.5*EXP(-1/2*((Q64-入力部分!I$26/2)/入力部分!I$34)^2) -> 0.007748945564 | S64: 0.4494388427 | V64: 58 | W64: =1/入力部分!$I$35/(2*3.14)^0.5*EXP(-1/2*((V64-入力部分!$I$27/2)/入力部分!$I$35)^2) -> 0.0001589795165 | X64: 0.009220811955
H65: 59 | I65: =(入力部分!D$7*M65+入力部分!D$8*R65+入力部分!D$9*W65)/(入力部分!D$7+入力部分!D$8+入力部分!D$9) -> 0.003973023157 | L65: 59 | M65: =1/入力部分!I$33/(2*3.14)^0.5*EXP(-1/2*((L65-入力部分!I$25)/入力部分!I$33)^2) -> 0.002822319087 | N65: 0.1665168261 | Q65: 59 | R65: =1/入力部分!I$34/(2*3.14)^0.5*EXP(-1/2*((Q65-入力部分!I$26/2)/入力部分!I$34)^2) -> 0.00768697443 | S65: 0.4535314914 | V65: 59 | W65: =1/入力部分!$I$35/(2*3.14)^0.5*EXP(-1/2*((V65-入力部分!$I$27/2)/入力部分!$I$35)^2) -> 0.0001281523526 | X65: 0.007560988805
H66: 60 | I66: =(入力部分!D$7*M66+入力部分!D$8*R66+入力部分!D$9*W66)/(入力部分!D$7+入力部分!D$8+入力部分!D$9) -> 0.003950158113 | L66: 60 | M66: =1/入力部分!I$33/(2*3.14)^0.5*EXP(-1/2*((L66-入力部分!I$25)/入力部分!I$33)^2) -> 0.002843001913 | N66: 0.1705801148 | Q66: 60 | R66: =1/入力部分!I$34/(2*3.14)^0.5*EXP(-1/2*((Q66-入力部分!I$26/2)/入力部分!I$34)^2) -> 0.007622189941 | S66: 0.4573313965 | V66: 60 | W66: =1/入力部分!$I$35/(2*3.14)^0.5*EXP(-1/2*((V66-入力部分!$I$27/2)/入力部分!$I$35)^2) -> 0.000102844672 | X66: 0.006170680319
H67: 61 | I67: =(入力部分!D$7*M67+入力部分!D$8*R67+入力部分!D$9*W67)/(入力部分!D$7+入力部分!D$8+入力部分!D$9) -> 0.003927385328 | L67: 61 | M67: =1/入力部分!I$33/(2*3.14)^0.5*EXP(-1/2*((L67-入力部分!I$25)/入力部分!I$33)^2) -> 0.002863576562 | N67: 0.1746781703 | Q67: 61 | R67: =1/入力部分!I$34/(2*3.14)^0.5*EXP(-1/2*((Q67-入力部分!I$26/2)/入力部分!I$34)^2) -> 0.007554671796 | S67: 0.4608349796 | V67: 61 | W67: =1/入力部分!$I$35/(2*3.14)^0.5*EXP(-1/2*((V67-入力部分!$I$27/2)/入力部分!$I$35)^2) -> 8.216877524e-05 | X67: 0.00501229529
H68: 62 | I68: =(入力部分!D$7*M68+入力部分!D$8*R68+入力部分!D$9*W68)/(入力部分!D$7+入力部分!D$8+入力部分!D$9) -> 0.003904542503 | L68: 62 | M68: =1/入力部分!I$33/(2*3.14)^0.5*EXP(-1/2*((L68-入力部分!I$25)/入力部分!I$33)^2) -> 0.002884038507 | N68: 0.1788103874 | Q68: 62 | R68: =1/入力部分!I$34/(2*3.14)^0.5*EXP(-1/2*((Q68-入力部分!I$26/2)/入力部分!I$34)^2) -> 0.007484502547 | S68: 0.4640391579 | V68: 62 | W68: =1/入力部分!$I$35/(2*3.14)^0.5*EXP(-1/2*((V68-入力部分!$I$27/2)/入力部分!$I$35)^2) -> 6.535843316e-05 | X68: 0.004052222856
H69: 63 | I69: =(入力部分!D$7*M69+入力部分!D$8*R69+入力部分!D$9*W69)/(入力部分!D$7+入力部分!D$8+入力部分!D$9) -> 0.003881495658 | L69: 63 | M69: =1/入力部分!I$33/(2*3.14)^0.5*EXP(-1/2*((L69-入力部分!I$25)/入力部分!I$33)^2) -> 0.002904383216 | N69: 0.1829761426 | Q69: 63 | R69: =1/入力部分!I$34/(2*3.14)^0.5*EXP(-1/2*((Q69-入力部分!I$26/2)/入力部分!I$34)^2) -> 0.007411767431 | S69: 0.4669413482 | V69: 63 | W69: =1/入力部分!$I$35/(2*3.14)^0.5*EXP(-1/2*((V69-入力部分!$I$27/2)/入力部分!$I$35)^2) -> 5.175666129e-05 | X69: 0.003260669661
H70: 64 | I70: =(入力部分!D$7*M70+入力部分!D$8*R70+入力部分!D$9*W70)/(入力部分!D$7+入力部分!D$8+入力部分!D$9) -> 0.003858136088 | L70: 64 | M70: =1/入力部分!I$33/(2*3.14)^0.5*EXP(-1/2*((L70-入力部分!I$25)/入力部分!I$33)^2) -> 0.002924606159 | N70: 0.1871747942 | Q70: 64 | R70: =1/入力部分!I$34/(2*3.14)^0.5*EXP(-1/2*((Q70-入力部分!I$26/2)/入力部分!I$34)^2) -> 0.007336554204 | S70: 0.469539469 | V70: 64 | W70: =1/入力部分!$I$35/(2*3.14)^0.5*EXP(-1/2*((V70-入力部分!$I$27/2)/入力部分!$I$35)^2) -> 4.080380621e-05 | X70: 0.002611443598
H71: 65 | I71: =(入力部分!D$7*M71+入力部分!D$8*R71+入力部分!D$9*W71)/(入力部分!D$7+入力部分!D$8+入力部分!D$9) -> 0.003834377451 | L71: 65 | M71: =1/入力部分!I$33/(2*3.14)^0.5*EXP(-1/2*((L71-入力部分!I$25)/入力部分!I$33)^2) -> 0.002944702808 | N71: =L71*$M71 -> 0.1914056825 | Q71: 65 | R71: =1/入力部分!I$34/(2*3.14)^0.5*EXP(-1/2*((Q71-入力部分!I$26/2)/入力部分!I$34)^2) -> 0.007258952954 | S71: =Q71*$R71 -> 0.471831942 | V71: 65 | W71: =1/入力部分!$I$35/(2*3.14)^0.5*EXP(-1/2*((V71-入力部分!$I$27/2)/入力部分!$I$35)^2) -> 3.202616242e-05 | X71: =V71*$W71 -> 0.002081700557
H72: 66 | I72: =(入力部分!D$7*M72+入力部分!D$8*R72+入力部分!D$9*W72)/(入力部分!D$7+入力部分!D$8+入力部分!D$9) -> 0.003810153033 | L72: 66 | M72: =1/入力部分!I$33/(2*3.14)^0.5*EXP(-1/2*((L72-入力部分!I$25)/入力部分!I$33)^2) -> 0.002964668635 | N72: 0.1956681299 | Q72: 66 | R72: =1/入力部分!I$34/(2*3.14)^0.5*EXP(-1/2*((Q72-入力部分!I$26/2)/入力部分!I$34)^2) -> 0.007179055934 | S72: 0.4738176917 | V72: 66 | W72: =1/入力部分!$I$35/(2*3.14)^0.5*EXP(-1/2*((V72-入力部分!$I$27/2)/入力部分!$I$35)^2) -> 2.502527909e-05 | X72: 0.00165166842
H73: 67 | I73: =(入力部分!D$7*M73+入力部分!D$8*R73+入力部分!D$9*W73)/(入力部分!D$7+入力部分!D$8+入力部分!D$9) -> 0.0037854132 | L73: 67 | M73: =1/入力部分!I$33/(2*3.14)^0.5*EXP(-1/2*((L73-入力部分!I$25)/入力部分!I$33)^2) -> 0.002984499121 | N73: 0.1999614411 | Q73: 67 | R73: =1/入力部分!I$34/(2*3.14)^0.5*EXP(-1/2*((Q73-入力部分!I$26/2)/入力部分!I$34)^2) -> 0.007096957371 | S73: 0.4754961438 | V73: 67 | W73: =1/入力部分!$I$35/(2*3.14)^0.5*EXP(-1/2*((V73-入力部分!$I$27/2)/入力部分!$I$35)^2) -> 1.946806375e-05 | X73: 0.001304360271
H74: 68 | I74: =(入力部分!D$7*M74+入力部分!D$8*R74+入力部分!D$9*W74)/(入力部分!D$7+入力部分!D$8+入力部分!D$9) -> 0.003760123074 | L74: 68 | M74: =1/入力部分!I$33/(2*3.14)^0.5*EXP(-1/2*((L74-入力部分!I$25)/入力部分!I$33)^2) -> 0.00300418975 | N74: 0.204284903 | Q74: 68 | R74: =1/入力部分!I$34/(2*3.14)^0.5*EXP(-1/2*((Q74-入力部分!I$26/2)/入力部分!I$34)^2) -> 0.007012753283 | S74: 0.4768672232 | V74: 68 | W74: =1/入力部分!$I$35/(2*3.14)^0.5*EXP(-1/2*((V74-入力部分!$I$27/2)/入力部分!$I$35)^2) -> 1.507774493e-05 | X74: 0.001025286655
H75: 69 | I75: =(入力部分!D$7*M75+入力部分!D$8*R75+入力部分!D$9*W75)/(入力部分!D$7+入力部分!D$8+入力部分!D$9) -> 0.003734260423 | L75: 69 | M75: =1/入力部分!I$33/(2*3.14)^0.5*EXP(-1/2*((L75-入力部分!I$25)/入力部分!I$33)^2) -> 0.003023736017 | N75: 0.2086377852 | Q75: 69 | R75: =1/入力部分!I$34/(2*3.14)^0.5*EXP(-1/2*((Q75-入力部分!I$26/2)/入力部分!I$34)^2) -> 0.006926541297 | S75: 0.4779313495 | V75: 69 | W75: =1/入力部分!$I$35/(2*3.14)^0.5*EXP(-1/2*((V75-入力部分!$I$27/2)/入力部分!$I$35)^2) -> 1.162571914e-05 | X75: 0.0008021746207
H76: 70 | I76: =(入力部分!D$7*M76+入力部分!D$8*R76+入力部分!D$9*W76)/(入力部分!D$7+入力部分!D$8+入力部分!D$9) -> 0.003707813776 | L76: 70 | M76: =1/入力部分!I$33/(2*3.14)^0.5*EXP(-1/2*((L76-入力部分!I$25)/入力部分!I$33)^2) -> 0.003043133425 | N76: 0.2130193397 | Q76: 70 | R76: =1/入力部分!I$34/(2*3.14)^0.5*EXP(-1/2*((Q76-入力部分!I$26/2)/入力部分!I$34)^2) -> 0.006838420458 | S76: 0.4786894321 | V76: 70 | W76: =1/入力部分!$I$35/(2*3.14)^0.5*EXP(-1/2*((V76-入力部分!$I$27/2)/入力部分!$I$35)^2) -> 8.924277452e-06 | X76: 0.0006246994216
H77: 71 | I77: =(入力部分!D$7*M77+入力部分!D$8*R77+入力部分!D$9*W77)/(入力部分!D$7+入力部分!D$8+入力部分!D$9) -> 0.003680780745 | L77: 71 | M77: =1/入力部分!I$33/(2*3.14)^0.5*EXP(-1/2*((L77-入力部分!I$25)/入力部分!I$33)^2) -> 0.003062377488 | N77: 0.2174288017 | Q77: 71 | R77: =1/入力部分!I$34/(2*3.14)^0.5*EXP(-1/2*((Q77-入力部分!I$26/2)/入力部分!I$34)^2) -> 0.006748491042 | S77: 0.479142864 | V77: 71 | W77: =1/入力部分!$I$35/(2*3.14)^0.5*EXP(-1/2*((V77-入力部分!$I$27/2)/入力部分!$I$35)^2) -> 6.820184183e-06 | X77: 0.000484233077
H78: 72 | I78: =(入力部分!D$7*M78+入力部分!D$8*R78+入力部分!D$9*W78)/(入力部分!D$7+入力部分!D$8+入力部分!D$9) -> 0.003653166554 | L78: 72 | M78: =1/入力部分!I$33/(2*3.14)^0.5*EXP(-1/2*((L78-入力部分!I$25)/入力部分!I$33)^2) -> 0.003081463736 | N78: 0.221865389 | Q78: 72 | R78: =1/入力部分!I$34/(2*3.14)^0.5*EXP(-1/2*((Q78-入力部分!I$26/2)/入力部分!I$34)^2) -> 0.006656854366 | S78: 0.4792935144 | V78: 72 | W78: =1/入力部分!$I$35/(2*3.14)^0.5*EXP(-1/2*((V78-入力部分!$I$27/2)/入力部分!$I$35)^2) -> 5.189063016e-06 | X78: 0.0003736125371
H79: 73 | I79: =(入力部分!D$7*M79+入力部分!D$8*R79+入力部分!D$9*W79)/(入力部分!D$7+入力部分!D$8+入力部分!D$9) -> 0.003624982751 | L79: 73 | M79: =1/入力部分!I$33/(2*3.14)^0.5*EXP(-1/2*((L79-入力部分!I$25)/入力部分!I$33)^2) -> 0.003100387712 | N79: 0.226328303 | Q79: 73 | R79: =1/入力部分!I$34/(2*3.14)^0.5*EXP(-1/2*((Q79-入力部分!I$26/2)/入力部分!I$34)^2) -> 0.006563612602 | S79: 0.4791437199 | V79: 73 | W79: =1/入力部分!$I$35/(2*3.14)^0.5*EXP(-1/2*((V79-入力部分!$I$27/2)/入力部分!$I$35)^2) -> 3.930534283e-06 | X79: 0.0002869290027
H80: 74 | I80: =(入力部分!D$7*M80+入力部分!D$8*R80+入力部分!D$9*W80)/(入力部分!D$7+入力部分!D$8+入力部分!D$9) -> 0.003596246095 | L80: 74 | M80: =1/入力部分!I$33/(2*3.14)^0.5*EXP(-1/2*((L80-入力部分!I$25)/入力部分!I$33)^2) -> 0.003119144976 | N80: 0.2308167282 | Q80: 74 | R80: =1/入力部分!I$34/(2*3.14)^0.5*EXP(-1/2*((Q80-入力部分!I$26/2)/入力部分!I$34)^2) -> 0.006468868585 | S80: 0.4786962753 | V80: 74 | W80: =1/入力部分!$I$35/(2*3.14)^0.5*EXP(-1/2*((V80-入力部分!$I$27/2)/入力部分!$I$35)^2) -> 2.964039827e-06 | X80: 0.0002193389472
H81: 75 | I81: =(入力部分!D$7*M81+入力部分!D$8*R81+入力部分!D$9*W81)/(入力部分!D$7+入力部分!D$8+入力部分!D$9) -> 0.003566977599 | L81: 75 | M81: =1/入力部分!I$33/(2*3.14)^0.5*EXP(-1/2*((L81-入力部分!I$25)/入力部分!I$33)^2) -> 0.003137731107 | N81: 0.235329833 | Q81: 75 | R81: =1/入力部分!I$34/(2*3.14)^0.5*EXP(-1/2*((Q81-入力部分!I$26/2)/入力部分!I$34)^2) -> 0.006372725633 | S81: 0.4779544225 | V81: 75 | W81: =1/入力部分!$I$35/(2*3.14)^0.5*EXP(-1/2*((V81-入力部分!$I$27/2)/入力部分!$I$35)^2) -> 2.225288294e-06 | X81: 0.0001668966221
H82: 76 | I82: =(入力部分!D$7*M82+入力部分!D$8*R82+入力部分!D$9*W82)/(入力部分!D$7+入力部分!D$8+入力部分!D$9) -> 0.00353720171 | L82: 76 | M82: =1/入力部分!I$33/(2*3.14)^0.5*EXP(-1/2*((L82-入力部分!I$25)/入力部分!I$33)^2) -> 0.003156141703 | N82: 0.2398667694 | Q82: 76 | R82: =1/入力部分!I$34/(2*3.14)^0.5*EXP(-1/2*((Q82-入力部分!I$26/2)/入力部分!I$34)^2) -> 0.006275287357 | S82: 0.4769218391 | V82: 76 | W82: =1/入力部分!$I$35/(2*3.14)^0.5*EXP(-1/2*((V82-入力部分!$I$27/2)/入力部分!$I$35)^2) -> 1.663253072e-06 | X82: 0.0001264072335
H83: 77 | I83: =(入力部分!D$7*M83+入力部分!D$8*R83+入力部分!D$9*W83)/(入力部分!D$7+入力部分!D$8+入力部分!D$9) -> 0.003506945612 | L83: 77 | M83: =1/入力部分!I$33/(2*3.14)^0.5*EXP(-1/2*((L83-入力部分!I$25)/入力部分!I$33)^2) -> 0.003174372384 | N83: 0.2444266736 | Q83: 77 | R83: =1/入力部分!I$34/(2*3.14)^0.5*EXP(-1/2*((Q83-入力部分!I$26/2)/入力部分!I$34)^2) -> 0.006176657478 | S83: 0.4756026258 | V83: 77 | W83: =1/入力部分!$I$35/(2*3.14)^0.5*EXP(-1/2*((V83-入力部分!$I$27/2)/入力部分!$I$35)^2) -> 1.237656672e-06 | X83: 9.529956374e-05
H84: 78 | I84: =(入力部分!D$7*M84+入力部分!D$8*R84+入力部分!D$9*W84)/(入力部分!D$7+入力部分!D$8+入力部分!D$9) -> 0.003476238637 | L84: 78 | M84: =1/入力部分!I$33/(2*3.14)^0.5*EXP(-1/2*((L84-入力部分!I$25)/入力部分!I$33)^2) -> 0.003192418796 | N84: 0.2490086661 | Q84: 78 | R84: =1/入力部分!I$34/(2*3.14)^0.5*EXP(-1/2*((Q84-入力部分!I$26/2)/入力部分!I$34)^2) -> 0.00607693965 | S84: 0.4740012927 | V84: 78 | W84: =1/入力部分!$I$35/(2*3.14)^0.5*EXP(-1/2*((V84-入力部分!$I$27/2)/入力部分!$I$35)^2) -> 9.168786136e-07 | X84: 7.151653186e-05
H85: 79 | I85: =(入力部分!D$7*M85+入力部分!D$8*R85+入力部分!D$9*W85)/(入力部分!D$7+入力部分!D$8+入力部分!D$9) -> 0.003445111766 | L85: 79 | M85: =1/入力部分!I$33/(2*3.14)^0.5*EXP(-1/2*((L85-入力部分!I$25)/入力部分!I$33)^2) -> 0.003210276608 | N85: 0.253611852 | Q85: 79 | R85: =1/入力部分!I$34/(2*3.14)^0.5*EXP(-1/2*((Q85-入力部分!I$26/2)/入力部分!I$34)^2) -> 0.005976237282 | S85: 0.4721227453 | V85: 79 | W85: =1/入力部分!$I$35/(2*3.14)^0.5*EXP(-1/2*((V85-入力部分!$I$27/2)/入力部分!$I$35)^2) -> 6.762282355e-07 | X85: 5.342203061e-05
H86: 80 | I86: =(入力部分!D$7*M86+入力部分!D$8*R86+入力部分!D$9*W86)/(入力部分!D$7+入力部分!D$8+入力部分!D$9) -> 0.00341359721 | L86: 80 | M86: =1/入力部分!I$33/(2*3.14)^0.5*EXP(-1/2*((L86-入力部分!I$25)/入力部分!I$33)^2) -> 0.003227941516 | N86: 0.2582353213 | Q86: 80 | R86: =1/入力部分!I$34/(2*3.14)^0.5*EXP(-1/2*((Q86-入力部分!I$26/2)/入力部分!I$34)^2) -> 0.005874653359 | S86: 0.4699722687 | V86: 80 | W86: =1/入力部分!$I$35/(2*3.14)^0.5*EXP(-1/2*((V86-入力部分!$I$27/2)/入力部分!$I$35)^2) -> 4.965289335e-07 | X86: 3.972231468e-05
H87: 81 | I87: =(入力部分!D$7*M87+入力部分!D$8*R87+入力部分!D$9*W87)/(入力部分!D$7+入力部分!D$8+入力部分!D$9) -> 0.003381728063 | L87: 81 | M87: =1/入力部分!I$33/(2*3.14)^0.5*EXP(-1/2*((L87-入力部分!I$25)/入力部分!I$33)^2) -> 0.003245409245 | N87: 0.2628781489 | Q87: 81 | R87: =1/入力部分!I$34/(2*3.14)^0.5*EXP(-1/2*((Q87-入力部分!I$26/2)/入力部分!I$34)^2) -> 0.005772290279 | S87: 0.4675555126 | V87: 81 | W87: =1/入力部分!$I$35/(2*3.14)^0.5*EXP(-1/2*((V87-入力部分!$I$27/2)/入力部分!$I$35)^2) -> 3.629657305e-07 | X87: 2.940022417e-05
H88: 82 | I88: =(入力部分!D$7*M88+入力部分!D$8*R88+入力部分!D$9*W88)/(入力部分!D$7+入力部分!D$8+入力部分!D$9) -> 0.003349538001 | L88: 82 | M88: =1/入力部分!I$33/(2*3.14)^0.5*EXP(-1/2*((L88-入力部分!I$25)/入力部分!I$33)^2) -> 0.003262675552 | N88: 0.2675393953 | Q88: 82 | R88: =1/入力部分!I$34/(2*3.14)^0.5*EXP(-1/2*((Q88-入力部分!I$26/2)/入力部分!I$34)^2) -> 0.005669249682 | S88: 0.464878474 | V88: 82 | W88: =1/入力部分!$I$35/(2*3.14)^0.5*EXP(-1/2*((V88-入力部分!$I$27/2)/入力部分!$I$35)^2) -> 2.641535719e-07 | X88: 2.166059289e-05
H89: 83 | I89: =(入力部分!D$7*M89+入力部分!D$8*R89+入力部分!D$9*W89)/(入力部分!D$7+入力部分!D$8+入力部分!D$9) -> 0.00331706104 | L89: 83 | M89: =1/入力部分!I$33/(2*3.14)^0.5*EXP(-1/2*((L89-入力部分!I$25)/入力部分!I$33)^2) -> 0.003279736225 | N89: 0.2722181066 | Q89: 83 | R89: =1/入力部分!I$34/(2*3.14)^0.5*EXP(-1/2*((Q89-入力部分!I$26/2)/入力部分!I$34)^2) -> 0.00556563229 | S89: 0.4619474801 | V89: 83 | W89: =1/入力部分!$I$35/(2*3.14)^0.5*EXP(-1/2*((V89-入力部分!$I$27/2)/入力部分!$I$35)^2) -> 1.913890799e-07 | X89: 1.588529363e-05
H90: 84 | I90: =(入力部分!D$7*M90+入力部分!D$8*R90+入力部分!D$9*W90)/(入力部分!D$7+入力部分!D$8+入力部分!D$9) -> 0.003284331325 | L90: 84 | M90: =1/入力部分!I$33/(2*3.14)^0.5*EXP(-1/2*((L90-入力部分!I$25)/入力部分!I$33)^2) -> 0.003296587084 | N90: 0.2769133151 | Q90: 84 | R90: =1/入力部分!I$34/(2*3.14)^0.5*EXP(-1/2*((Q90-入力部分!I$26/2)/入力部分!I$34)^2) -> 0.005461537748 | S90: 0.4587691708 | V90: 84 | W90: =1/入力部分!$I$35/(2*3.14)^0.5*EXP(-1/2*((V90-入力部分!$I$27/2)/入力部分!$I$35)^2) -> 1.380535643e-07 | X90: 1.15964994e-05
H91: 85 | I91: =(入力部分!D$7*M91+入力部分!D$8*R91+入力部分!D$9*W91)/(入力部分!D$7+入力部分!D$8+入力部分!D$9) -> 0.003251382959 | L91: 85 | M91: =1/入力部分!I$33/(2*3.14)^0.5*EXP(-1/2*((L91-入力部分!I$25)/入力部分!I$33)^2) -> 0.003313223988 | N91: 0.281624039 | Q91: 85 | R91: =1/入力部分!I$34/(2*3.14)^0.5*EXP(-1/2*((Q91-入力部分!I$26/2)/入力部分!I$34)^2) -> 0.005357064477 | S91: 0.4553504805 | V91: 85 | W91: =1/入力部分!$I$35/(2*3.14)^0.5*EXP(-1/2*((V91-入力部分!$I$27/2)/入力部分!$I$35)^2) -> 9.913976732e-08 | X91: 8.426880222e-06
H92: 86 | I92: =(入力部分!D$7*M92+入力部分!D$8*R92+入力部分!D$9*W92)/(入力部分!D$7+入力部分!D$8+入力部分!D$9) -> 0.003218249853 | L92: 86 | M92: =1/入力部分!I$33/(2*3.14)^0.5*EXP(-1/2*((L92-入力部分!I$25)/入力部分!I$33)^2) -> 0.003329642832 | N92: 0.2863492836 | Q92: 86 | R92: =1/入力部分!I$34/(2*3.14)^0.5*EXP(-1/2*((Q92-入力部分!I$26/2)/入力部分!I$34)^2) -> 0.005252309523 | S92: 0.4516986189 | V92: 86 | W92: =1/入力部分!$I$35/(2*3.14)^0.5*EXP(-1/2*((V92-入力部分!$I$27/2)/入力部分!$I$35)^2) -> 7.087906324e-08 | X92: 6.095599439e-06
H93: 87 | I93: =(入力部分!D$7*M93+入力部分!D$8*R93+入力部分!D$9*W93)/(入力部分!D$7+入力部分!D$8+入力部分!D$9) -> 0.0031849656 | L93: 87 | M93: =1/入力部分!I$33/(2*3.14)^0.5*EXP(-1/2*((L93-入力部分!I$25)/入力部分!I$33)^2) -> 0.003345839549 | N93: 0.2910880408 | Q93: 87 | R93: =1/入力部分!I$34/(2*3.14)^0.5*EXP(-1/2*((Q93-入力部分!I$26/2)/入力部分!I$34)^2) -> 0.005147368418 | S93: 0.4478210524 | V93: 87 | W93: =1/入力部分!$I$35/(2*3.14)^0.5*EXP(-1/2*((V93-入力部分!$I$27/2)/入力部分!$I$35)^2) -> 5.044961372e-08 | X93: 4.389116393e-06
H94: 88 | I94: =(入力部分!D$7*M94+入力部分!D$8*R94+入力部分!D$9*W94)/(入力部分!D$7+入力部分!D$8+入力部分!D$9) -> 0.003151563373 | L94: 88 | M94: =1/入力部分!I$33/(2*3.14)^0.5*EXP(-1/2*((L94-入力部分!I$25)/入力部分!I$33)^2) -> 0.003361810113 | N94: 0.29583929 | Q94: 88 | R94: =1/入力部分!I$34/(2*3.14)^0.5*EXP(-1/2*((Q94-入力部分!I$26/2)/入力部分!I$34)^2) -> 0.005042335047 | S94: 0.4437254842 | V94: 88 | W94: =1/入力部分!$I$35/(2*3.14)^0.5*EXP(-1/2*((V94-入力部分!$I$27/2)/入力部分!$I$35)^2) -> 3.574929847e-08 | X94: 3.145938265e-06
H95: 89 | I95: =(入力部分!D$7*M95+入力部分!D$8*R95+入力部分!D$9*W95)/(入力部分!D$7+入力部分!D$8+入力部分!D$9) -> 0.003118075827 | L95: 89 | M95: =1/入力部分!I$33/(2*3.14)^0.5*EXP(-1/2*((L95-入力部分!I$25)/入力部分!I$33)^2) -> 0.003377550541 | N95: 0.3006019982 | Q95: 89 | R95: =1/入力部分!I$34/(2*3.14)^0.5*EXP(-1/2*((Q95-入力部分!I$26/2)/入力部分!I$34)^2) -> 0.004937301518 | S95: 0.4394198351 | V95: 89 | W95: =1/入力部分!$I$35/(2*3.14)^0.5*EXP(-1/2*((V95-入力部分!$I$27/2)/入力部分!$I$35)^2) -> 2.522011163e-08 | X95: 2.244589935e-06
H96: 90 | I96: =(入力部分!D$7*M96+入力部分!D$8*R96+入力部分!D$9*W96)/(入力部分!D$7+入力部分!D$8+入力部分!D$9) -> 0.003084535029 | L96: 90 | M96: =1/入力部分!I$33/(2*3.14)^0.5*EXP(-1/2*((L96-入力部分!I$25)/入力部分!I$33)^2) -> 0.003393056894 | N96: 0.3053751205 | Q96: 90 | R96: =1/入力部分!I$34/(2*3.14)^0.5*EXP(-1/2*((Q96-入力部分!I$26/2)/入力部分!I$34)^2) -> 0.00483235804 | S96: 0.4349122236 | V96: 90 | W96: =1/入力部分!$I$35/(2*3.14)^0.5*EXP(-1/2*((V96-入力部分!$I$27/2)/入力部分!$I$35)^2) -> 1.771316987e-08 | X96: 1.594185288e-06
H97: 91 | I97: =(入力部分!D$7*M97+入力部分!D$8*R97+入力部分!D$9*W97)/(入力部分!D$7+入力部分!D$8+入力部分!D$9) -> 0.003050972378 | L97: 91 | M97: =1/入力部分!I$33/(2*3.14)^0.5*EXP(-1/2*((L97-入力部分!I$25)/入力部分!I$33)^2) -> 0.003408325278 | N97: 0.3101576003 | Q97: 91 | R97: =1/入力部分!I$34/(2*3.14)^0.5*EXP(-1/2*((Q97-入力部分!I$26/2)/入力部分!I$34)^2) -> 0.004727592808 | S97: 0.4302109455 | V97: 91 | W97: =1/入力部分!$I$35/(2*3.14)^0.5*EXP(-1/2*((V97-入力部分!$I$27/2)/入力部分!$I$35)^2) -> 1.238555217e-08 | X97: 1.127085247e-06
H98: 92 | I98: =(入力部分!D$7*M98+入力部分!D$8*R98+入力部分!D$9*W98)/(入力部分!D$7+入力部分!D$8+入力部分!D$9) -> 0.003017418557 | L98: 92 | M98: =1/入力部分!I$33/(2*3.14)^0.5*EXP(-1/2*((L98-入力部分!I$25)/入力部分!I$33)^2) -> 0.003423351845 | N98: 0.3149483697 | Q98: 92 | R98: =1/入力部分!I$34/(2*3.14)^0.5*EXP(-1/2*((Q98-入力部分!I$26/2)/入力部分!I$34)^2) -> 0.004623091894 | S98: 0.4253244542 | V98: 92 | W98: =1/入力部分!$I$35/(2*3.14)^0.5*EXP(-1/2*((V98-入力部分!$I$27/2)/入力部分!$I$35)^2) -> 8.621925395e-09 | X98: 7.932171363e-07
H99: 93 | I99: =(入力部分!D$7*M99+入力部分!D$8*R99+入力部分!D$9*W99)/(入力部分!D$7+入力部分!D$8+入力部分!D$9) -> 0.002983903473 | L99: 93 | M99: =1/入力部分!I$33/(2*3.14)^0.5*EXP(-1/2*((L99-入力部分!I$25)/入力部分!I$33)^2) -> 0.003438132798 | N99: 0.3197463502 | Q99: 93 | R99: =1/入力部分!I$34/(2*3.14)^0.5*EXP(-1/2*((Q99-入力部分!I$26/2)/入力部分!I$34)^2) -> 0.004518939145 | S99: 0.4202613405 | V99: 93 | W99: =1/入力部分!$I$35/(2*3.14)^0.5*EXP(-1/2*((V99-入力部分!$I$27/2)/入力部分!$I$35)^2) -> 5.975344522e-09 | X99: 5.557070405e-07
H100: 94 | I100: =(入力部分!D$7*M100+入力部分!D$8*R100+入力部分!D$9*W100)/(入力部分!D$7+入力部分!D$8+入力部分!D$9) -> 0.002950456211 | L100: 94 | M100: =1/入力部分!I$33/(2*3.14)^0.5*EXP(-1/2*((L100-入力部分!I$25)/入力部分!I$33)^2) -> 0.003452664389 | N100: 0.3245504526 | Q100: 94 | R100: =1/入力部分!I$34/(2*3.14)^0.5*EXP(-1/2*((Q100-入力部分!I$26/2)/入力部分!I$34)^2) -> 0.004415216092 | S100: 0.4150303127 | V100: 94 | W100: =1/入力部分!$I$35/(2*3.14)^0.5*EXP(-1/2*((V100-入力部分!$I$27/2)/入力部分!$I$35)^2) -> 4.122792173e-09 | X100: 3.875424642e-07
H101: 95 | I101: =(入力部分!D$7*M101+入力部分!D$8*R101+入力部分!D$9*W101)/(入力部分!D$7+入力部分!D$8+入力部分!D$9) -> 0.002917105 | L101: 95 | M101: =1/入力部分!I$33/(2*3.14)^0.5*EXP(-1/2*((L101-入力部分!I$25)/入力部分!I$33)^2) -> 0.003466942924 | N101: 0.3293595778 | Q101: 95 | R101: =1/入力部分!I$34/(2*3.14)^0.5*EXP(-1/2*((Q101-入力部分!I$26/2)/入力部分!I$34)^2) -> 0.004312001856 | S101: 0.4096401763 | V101: 95 | W101: =1/入力部分!$I$35/(2*3.14)^0.5*EXP(-1/2*((V101-入力部分!$I$27/2)/入力部分!$I$35)^2) -> 2.831977101e-09 | X101: 2.690378246e-07
H102: 96 | I102: =(入力部分!D$7*M102+入力部分!D$8*R102+入力部分!D$9*W102)/(入力部分!D$7+入力部分!D$8+入力部分!D$9) -> 0.00288387717 | L102: 96 | M102: =1/入力部分!I$33/(2*3.14)^0.5*EXP(-1/2*((L102-入力部分!I$25)/入力部分!I$33)^2) -> 0.003480964759 | N102: 0.3341726169 | Q102: 96 | R102: =1/入力部分!I$34/(2*3.14)^0.5*EXP(-1/2*((Q102-入力部分!I$26/2)/入力部分!I$34)^2) -> 0.004209373071 | S102: 0.4040998148 | V102: 96 | W102: =1/入力部分!$I$35/(2*3.14)^0.5*EXP(-1/2*((V102-入力部分!$I$27/2)/入力部分!$I$35)^2) -> 1.936679851e-09 | X102: 1.859212657e-07
H103: 97 | I103: =(入力部分!D$7*M103+入力部分!D$8*R103+入力部分!D$9*W103)/(入力部分!D$7+入力部分!D$8+入力部分!D$9) -> 0.002850799125 | L103: 97 | M103: =1/入力部分!I$33/(2*3.14)^0.5*EXP(-1/2*((L103-入力部分!I$25)/入力部分!I$33)^2) -> 0.003494726309 | N103: 0.338988452 | Q103: 97 | R103: =1/入力部分!I$34/(2*3.14)^0.5*EXP(-1/2*((Q103-入力部分!I$26/2)/入力部分!I$34)^2) -> 0.004107403811 | S103: 0.3984181697 | V103: 97 | W103: =1/入力部分!$I$35/(2*3.14)^0.5*EXP(-1/2*((V103-入力部分!$I$27/2)/入力部分!$I$35)^2) -> 1.31854736e-09 | X103: 1.278990939e-07
H104: 98 | I104: =(入力部分!D$7*M104+入力部分!D$8*R104+入力部分!D$9*W104)/(入力部分!D$7+入力部分!D$8+入力部分!D$9) -> 0.002817896311 | L104: 98 | M104: =1/入力部分!I$33/(2*3.14)^0.5*EXP(-1/2*((L104-入力部分!I$25)/入力部分!I$33)^2) -> 0.003508224042 | N104: 0.3438059561 | Q104: 98 | R104: =1/入力部分!I$34/(2*3.14)^0.5*EXP(-1/2*((Q104-入力部分!I$26/2)/入力部分!I$34)^2) -> 0.004006165525 | S104: 0.3926042214 | V104: 98 | W104: =1/入力部分!$I$35/(2*3.14)^0.5*EXP(-1/2*((V104-入力部分!$I$27/2)/入力部分!$I$35)^2) -> 8.937240295e-10 | X104: 8.758495489e-08
H105: 99 | I105: =(入力部分!D$7*M105+入力部分!D$8*R105+入力部分!D$9*W105)/(入力部分!D$7+入力部分!D$8+入力部分!D$9) -> 0.002785193198 | L105: 99 | M105: =1/入力部分!I$33/(2*3.14)^0.5*EXP(-1/2*((L105-入力部分!I$25)/入力部分!I$33)^2) -> 0.003521454487 | N105: 0.3486239943 | Q105: 99 | R105: =1/入力部分!I$34/(2*3.14)^0.5*EXP(-1/2*((Q105-入力部分!I$26/2)/入力部分!I$34)^2) -> 0.003905726973 | S105: 0.3866669703 | V105: 99 | W105: =1/入力部分!$I$35/(2*3.14)^0.5*EXP(-1/2*((V105-入力部分!$I$27/2)/入力部分!$I$35)^2) -> 6.030883494e-10 | X105: 5.970574659e-08
H106: 100 | I106: =(入力部分!D$7*M106+入力部分!D$8*R106+入力部分!D$9*W106)/(入力部分!D$7+入力部分!D$8+入力部分!D$9) -> 0.002752713256 | L106: 100 | M106: =1/入力部分!I$33/(2*3.14)^0.5*EXP(-1/2*((L106-入力部分!I$25)/入力部分!I$33)^2) -> 0.003534414232 | N106: 0.3534414232 | Q106: 100 | R106: =1/入力部分!I$34/(2*3.14)^0.5*EXP(-1/2*((Q106-入力部分!I$26/2)/入力部分!I$34)^2) -> 0.00380615418 | S106: 0.380615418 | V106: 100 | W106: =1/入力部分!$I$35/(2*3.14)^0.5*EXP(-1/2*((V106-入力部分!$I$27/2)/入力部分!$I$35)^2) -> 4.051615695e-10 | X106: 4.051615695e-08
H107: 101 | I107: =(入力部分!D$7*M107+入力部分!D$8*R107+入力部分!D$9*W107)/(入力部分!D$7+入力部分!D$8+入力部分!D$9) -> 0.002720478935 | L107: 101 | M107: =1/入力部分!I$33/(2*3.14)^0.5*EXP(-1/2*((L107-入力部分!I$25)/入力部分!I$33)^2) -> 0.003547099924 | N107: 0.3582570923 | Q107: 101 | R107: =1/入力部分!I$34/(2*3.14)^0.5*EXP(-1/2*((Q107-入力部分!I$26/2)/入力部分!I$34)^2) -> 0.003707510389 | S107: 0.3744585493 | V107: 101 | W107: =1/入力部分!$I$35/(2*3.14)^0.5*EXP(-1/2*((V107-入力部分!$I$27/2)/入力部分!$I$35)^2) -> 2.709850633e-10 | X107: 2.736949139e-08
H108: 102 | I108: =(入力部分!D$7*M108+入力部分!D$8*R108+入力部分!D$9*W108)/(入力部分!D$7+入力部分!D$8+入力部分!D$9) -> 0.002688511657 | L108: 102 | M108: =1/入力部分!I$33/(2*3.14)^0.5*EXP(-1/2*((L108-入力部分!I$25)/入力部分!I$33)^2) -> 0.003559508275 | N108: 0.363069844 | Q108: 102 | R108: =1/入力部分!I$34/(2*3.14)^0.5*EXP(-1/2*((Q108-入力部分!I$26/2)/入力部分!I$34)^2) -> 0.003609856024 | S108: 0.3682053144 | V108: 102 | W108: =1/入力部分!$I$35/(2*3.14)^0.5*EXP(-1/2*((V108-入力部分!$I$27/2)/入力部分!$I$35)^2) -> 1.804397696e-10 | X108: 1.84048565e-08
H109: 103 | I109: =(入力部分!D$7*M109+入力部分!D$8*R109+入力部分!D$9*W109)/(入力部分!D$7+入力部分!D$8+入力部分!D$9) -> 0.002656831799 | L109: 103 | M109: =1/入力部分!I$33/(2*3.14)^0.5*EXP(-1/2*((L109-入力部分!I$25)/入力部分!I$33)^2) -> 0.003571636059 | N109: 0.3678785141 | Q109: 103 | R109: =1/入力部分!I$34/(2*3.14)^0.5*EXP(-1/2*((Q109-入力部分!I$26/2)/入力部分!I$34)^2) -> 0.003513248657 | S109: 0.3618646117 | V109: 103 | W109: =1/入力部分!$I$35/(2*3.14)^0.5*EXP(-1/2*((V109-入力部分!$I$27/2)/入力部分!$I$35)^2) -> 1.196159178e-10 | X109: 1.232043953e-08
H110: 104 | I110: =(入力部分!D$7*M110+入力部分!D$8*R110+入力部分!D$9*W110)/(入力部分!D$7+入力部分!D$8+入力部分!D$9) -> 0.002625458686 | L110: 104 | M110: =1/入力部分!I$33/(2*3.14)^0.5*EXP(-1/2*((L110-入力部分!I$25)/入力部分!I$33)^2) -> 0.003583480119 | N110: 0.3726819323 | Q110: 104 | R110: =1/入力部分!I$34/(2*3.14)^0.5*EXP(-1/2*((Q110-入力部分!I$26/2)/入力部分!I$34)^2) -> 0.003417742991 | S110: 0.355445271 | V110: 104 | W110: =1/入力部分!$I$35/(2*3.14)^0.5*EXP(-1/2*((V110-入力部分!$I$27/2)/入力部分!$I$35)^2) -> 7.894333914e-11 | X110: 8.21010727e-09
H111: 105 | I111: =(入力部分!D$7*M111+入力部分!D$8*R111+入力部分!D$9*W111)/(入力部分!D$7+入力部分!D$8+入力部分!D$9) -> 0.002594410585 | L111: 105 | M111: =1/入力部分!I$33/(2*3.14)^0.5*EXP(-1/2*((L111-入力部分!I$25)/入力部分!I$33)^2) -> 0.003595037359 | N111: 0.3774789227 | Q111: 105 | R111: =1/入力部分!I$34/(2*3.14)^0.5*EXP(-1/2*((Q111-入力部分!I$26/2)/入力部分!I$34)^2) -> 0.003323390834 | S111: 0.3489560376 | V111: 105 | W111: =1/入力部分!$I$35/(2*3.14)^0.5*EXP(-1/2*((V111-入力部分!$I$27/2)/入力部分!$I$35)^2) -> 5.186946993e-11 | X111: 5.446294342e-09
H112: 106 | I112: =(入力部分!D$7*M112+入力部分!D$8*R112+入力部分!D$9*W112)/(入力部分!D$7+入力部分!D$8+入力部分!D$9) -> 0.002563704704 | L112: 106 | M112: =1/入力部分!I$33/(2*3.14)^0.5*EXP(-1/2*((L112-入力部分!I$25)/入力部分!I$33)^2) -> 0.003606304756 | N112: 0.3822683041 | Q112: 106 | R112: =1/入力部分!I$34/(2*3.14)^0.5*EXP(-1/2*((Q112-入力部分!I$26/2)/入力部分!I$34)^2) -> 0.003230241098 | S112: 0.3424055564 | V112: 106 | W112: =1/入力部分!$I$35/(2*3.14)^0.5*EXP(-1/2*((V112-入力部分!$I$27/2)/入力部分!$I$35)^2) -> 3.392953672e-11 | X112: 3.596530892e-09
H113: 107 | I113: =(入力部分!D$7*M113+入力部分!D$8*R113+入力部分!D$9*W113)/(入力部分!D$7+入力部分!D$8+入力部分!D$9) -> 0.002533357184 | L113: 107 | M113: =1/入力部分!I$33/(2*3.14)^0.5*EXP(-1/2*((L113-入力部分!I$25)/入力部分!I$33)^2) -> 0.003617279354 | N113: 0.3870488908 | Q113: 107 | R113: =1/入力部分!I$34/(2*3.14)^0.5*EXP(-1/2*((Q113-入力部分!I$26/2)/入力部分!I$34)^2) -> 0.003138339789 | S113: 0.3358023575 | V113: 107 | W113: =1/入力部分!$I$35/(2*3.14)^0.5*EXP(-1/2*((V113-入力部分!$I$27/2)/入力部分!$I$35)^2) -> 2.20960097e-11 | X113: 2.364273038e-09
H114: 108 | I114: =(入力部分!D$7*M114+入力部分!D$8*R114+入力部分!D$9*W114)/(入力部分!D$7+入力部分!D$8+入力部分!D$9) -> 0.002503383109 | L114: 108 | M114: =1/入力部分!I$33/(2*3.14)^0.5*EXP(-1/2*((L114-入力部分!I$25)/入力部分!I$33)^2) -> 0.003627958267 | N114: 0.3918194929 | Q114: 108 | R114: =1/入力部分!I$34/(2*3.14)^0.5*EXP(-1/2*((Q114-入力部分!I$26/2)/入力部分!I$34)^2) -> 0.003047730013 | S114: 0.3291548414 | V114: 108 | W114: =1/入力部分!$I$35/(2*3.14)^0.5*EXP(-1/2*((V114-入力部分!$I$27/2)/入力部分!$I$35)^2) -> 1.432582285e-11 | X114: 1.547188868e-09
H115: 109 | I115: =(入力部分!D$7*M115+入力部分!D$8*R115+入力部分!D$9*W115)/(入力部分!D$7+入力部分!D$8+入力部分!D$9) -> 0.002473796503 | L115: 109 | M115: =1/入力部分!I$33/(2*3.14)^0.5*EXP(-1/2*((L115-入力部分!I$25)/入力部分!I$33)^2) -> 0.003638338685 | N115: 0.3965789166 | Q115: 109 | R115: =1/入力部分!I$34/(2*3.14)^0.5*EXP(-1/2*((Q115-入力部分!I$26/2)/入力部分!I$34)^2) -> 0.002958451983 | S115: 0.3224712662 | V115: 109 | W115: =1/入力部分!$I$35/(2*3.14)^0.5*EXP(-1/2*((V115-入力部分!$I$27/2)/入力部分!$I$35)^2) -> 9.246877478e-12 | X115: 1.007909645e-09
H116: 110 | I116: =(入力部分!D$7*M116+入力部分!D$8*R116+入力部分!D$9*W116)/(入力部分!D$7+入力部分!D$8+入力部分!D$9) -> 0.002444610339 | L116: 110 | M116: =1/入力部分!I$33/(2*3.14)^0.5*EXP(-1/2*((L116-入力部分!I$25)/入力部分!I$33)^2) -> 0.003648417865 | N116: 0.4013259652 | Q116: 110 | R116: =1/入力部分!I$34/(2*3.14)^0.5*EXP(-1/2*((Q116-入力部分!I$26/2)/入力部分!I$34)^2) -> 0.002870543034 | S116: 0.3157597337 | V116: 110 | W116: =1/入力部分!$I$35/(2*3.14)^0.5*EXP(-1/2*((V116-入力部分!$I$27/2)/入力部分!$I$35)^2) -> 5.942106513e-12 | X116: 6.536317165e-10
H117: 111 | I117: =(入力部分!D$7*M117+入力部分!D$8*R117+入力部分!D$9*W117)/(入力部分!D$7+入力部分!D$8+入力部分!D$9) -> 0.002415836546 | L117: 111 | M117: =1/入力部分!I$33/(2*3.14)^0.5*EXP(-1/2*((L117-入力部分!I$25)/入力部分!I$33)^2) -> 0.003658193144 | N117: 0.406059439 | Q117: 111 | R117: =1/入力部分!I$34/(2*3.14)^0.5*EXP(-1/2*((Q117-入力部分!I$26/2)/入力部分!I$34)^2) -> 0.002784037644 | S117: 0.3090281785 | V117: 111 | W117: =1/入力部分!$I$35/(2*3.14)^0.5*EXP(-1/2*((V117-入力部分!$I$27/2)/入力部分!$I$35)^2) -> 3.80150498e-12 | X117: 4.219670528e-10
H118: 112 | I118: =(入力部分!D$7*M118+入力部分!D$8*R118+入力部分!D$9*W118)/(入力部分!D$7+入力部分!D$8+入力部分!D$9) -> 0.002387486022 | L118: 112 | M118: =1/入力部分!I$33/(2*3.14)^0.5*EXP(-1/2*((L118-入力部分!I$25)/入力部分!I$33)^2) -> 0.003667661931 | N118: 0.4107781363 | Q118: 112 | R118: =1/入力部分!I$34/(2*3.14)^0.5*EXP(-1/2*((Q118-入力部分!I$26/2)/入力部分!I$34)^2) -> 0.002698967461 | S118: 0.3022843556 | V118: 112 | W118: =1/入力部分!$I$35/(2*3.14)^0.5*EXP(-1/2*((V118-入力部分!$I$27/2)/入力部分!$I$35)^2) -> 2.421254816e-12 | X118: 2.711805393e-10
H119: 113 | I119: =(入力部分!D$7*M119+入力部分!D$8*R119+入力部分!D$9*W119)/(入力部分!D$7+入力部分!D$8+入力部分!D$9) -> 0.002359568642 | L119: 113 | M119: =1/入力部分!I$33/(2*3.14)^0.5*EXP(-1/2*((L119-入力部分!I$25)/入力部分!I$33)^2) -> 0.003676821713 | N119: 0.4154808536 | Q119: 113 | R119: =1/入力部分!I$34/(2*3.14)^0.5*EXP(-1/2*((Q119-入力部分!I$26/2)/入力部分!I$34)^2) -> 0.00261536133 | S119: 0.2955358303 | V119: 113 | W119: =1/入力部分!$I$35/(2*3.14)^0.5*EXP(-1/2*((V119-入力部分!$I$27/2)/入力部分!$I$35)^2) -> 1.535307012e-12 | X119: 1.734896924e-10
H120: 114 | I120: =(入力部分!D$7*M120+入力部分!D$8*R120+入力部分!D$9*W120)/(入力部分!D$7+入力部分!D$8+入力部分!D$9) -> 0.002332093272 | L120: 114 | M120: =1/入力部分!I$33/(2*3.14)^0.5*EXP(-1/2*((L120-入力部分!I$25)/入力部分!I$33)^2) -> 0.003685670055 | N120: 0.4201663863 | Q120: 114 | R120: =1/入力部分!I$34/(2*3.14)^0.5*EXP(-1/2*((Q120-入力部分!I$26/2)/入力部分!I$34)^2) -> 0.002533245336 | S120: 0.2887899683 | V120: 114 | W120: =1/入力部分!$I$35/(2*3.14)^0.5*EXP(-1/2*((V120-入力部分!$I$27/2)/入力部分!$I$35)^2) -> 9.692142077e-13 | X120: 1.104904197e-10
H121: 115 | I121: =(入力部分!D$7*M121+入力部分!D$8*R121+入力部分!D$9*W121)/(入力部分!D$7+入力部分!D$8+入力部分!D$9) -> 0.00230506779 | L121: 115 | M121: =1/入力部分!I$33/(2*3.14)^0.5*EXP(-1/2*((L121-入力部分!I$25)/入力部分!I$33)^2) -> 0.0036942046 | N121: 0.424833529 | Q121: 115 | R121: =1/入力部分!I$34/(2*3.14)^0.5*EXP(-1/2*((Q121-入力部分!I$26/2)/入力部分!I$34)^2) -> 0.002452642839 | S121: 0.2820539264 | V121: 115 | W121: =1/入力部分!$I$35/(2*3.14)^0.5*EXP(-1/2*((V121-入力部分!$I$27/2)/入力部分!$I$35)^2) -> 6.091357831e-13 | X121: 7.005061505e-11
H122: 116 | I122: =(入力部分!D$7*M122+入力部分!D$8*R122+入力部分!D$9*W122)/(入力部分!D$7+入力部分!D$8+入力部分!D$9) -> 0.002278499097 | L122: 116 | M122: =1/入力部分!I$33/(2*3.14)^0.5*EXP(-1/2*((L122-入力部分!I$25)/入力部分!I$33)^2) -> 0.003702423072 | N122: 0.4294810763 | Q122: 116 | R122: =1/入力部分!I$34/(2*3.14)^0.5*EXP(-1/2*((Q122-入力部分!I$26/2)/入力部分!I$34)^2) -> 0.002373574521 | S122: 0.2753346444 | V122: 116 | W122: =1/入力部分!$I$35/(2*3.14)^0.5*EXP(-1/2*((V122-入力部分!$I$27/2)/入力部分!$I$35)^2) -> 3.811344937e-13 | X122: 4.421160127e-11
H123: 117 | I123: =(入力部分!D$7*M123+入力部分!D$8*R123+入力部分!D$9*W123)/(入力部分!D$7+入力部分!D$8+入力部分!D$9) -> 0.002252393143 | L123: 117 | M123: =1/入力部分!I$33/(2*3.14)^0.5*EXP(-1/2*((L123-入力部分!I$25)/入力部分!I$33)^2) -> 0.003710323275 | N123: 0.4341078231 | Q123: 117 | R123: =1/入力部分!I$34/(2*3.14)^0.5*EXP(-1/2*((Q123-入力部分!I$26/2)/入力部分!I$34)^2) -> 0.002296058439 | S123: 0.2686388374 | V123: 117 | W123: =1/入力部分!$I$35/(2*3.14)^0.5*EXP(-1/2*((V123-入力部分!$I$27/2)/入力部分!$I$35)^2) -> 2.374172119e-13 | X123: 2.77778138e-11
H124: 118 | I124: =(入力部分!D$7*M124+入力部分!D$8*R124+入力部分!D$9*W124)/(入力部分!D$7+入力部分!D$8+入力部分!D$9) -> 0.002226754939 | L124: 118 | M124: =1/入力部分!I$33/(2*3.14)^0.5*EXP(-1/2*((L124-入力部分!I$25)/入力部分!I$33)^2) -> 0.003717903095 | N124: 0.4387125652 | Q124: 118 | R124: =1/入力部分!I$34/(2*3.14)^0.5*EXP(-1/2*((Q124-入力部分!I$26/2)/入力部分!I$34)^2) -> 0.002220110075 | S124: 0.2619729888 | V124: 118 | W124: =1/入力部分!$I$35/(2*3.14)^0.5*EXP(-1/2*((V124-入力部分!$I$27/2)/入力部分!$I$35)^2) -> 1.47236657e-13 | X124: 1.737392552e-11
H125: 119 | I125: =(入力部分!D$7*M125+入力部分!D$8*R125+入力部分!D$9*W125)/(入力部分!D$7+入力部分!D$8+入力部分!D$9) -> 0.002201588586 | L125: 119 | M125: =1/入力部分!I$33/(2*3.14)^0.5*EXP(-1/2*((L125-入力部分!I$25)/入力部分!I$33)^2) -> 0.003725160502 | N125: 0.4432940997 | Q125: 119 | R125: =1/入力部分!I$34/(2*3.14)^0.5*EXP(-1/2*((Q125-入力部分!I$26/2)/入力部分!I$34)^2) -> 0.002145742395 | S125: 0.255343345 | V125: 119 | W125: =1/入力部分!$I$35/(2*3.14)^0.5*EXP(-1/2*((V125-入力部分!$I$27/2)/入力部分!$I$35)^2) -> 9.090536145e-14 | X125: 1.081773801e-11
H126: 120 | I126: =(入力部分!D$7*M126+入力部分!D$8*R126+入力部分!D$9*W126)/(入力部分!D$7+入力部分!D$8+入力部分!D$9) -> 0.002176897297 | L126: 120 | M126: =1/入力部分!I$33/(2*3.14)^0.5*EXP(-1/2*((L126-入力部分!I$25)/入力部分!I$33)^2) -> 0.003732093548 | N126: 0.4478512257 | Q126: 120 | R126: =1/入力部分!I$34/(2*3.14)^0.5*EXP(-1/2*((Q126-入力部分!I$26/2)/入力部分!I$34)^2) -> 0.002072965911 | S126: 0.2487559093 | V126: 120 | W126: =1/入力部分!$I$35/(2*3.14)^0.5*EXP(-1/2*((V126-入力部分!$I$27/2)/入力部分!$I$35)^2) -> 5.587697028e-14 | X126: 6.705236434e-12
H127: 121 | I127: =(入力部分!D$7*M127+入力部分!D$8*R127+入力部分!D$9*W127)/(入力部分!D$7+入力部分!D$8+入力部分!D$9) -> 0.002152683418 | L127: 121 | M127: =1/入力部分!I$33/(2*3.14)^0.5*EXP(-1/2*((L127-入力部分!I$25)/入力部分!I$33)^2) -> 0.00373870037 | N127: 0.4523827448 | Q127: 121 | R127: =1/入力部分!I$34/(2*3.14)^0.5*EXP(-1/2*((Q127-入力部分!I$26/2)/入力部分!I$34)^2) -> 0.002001788744 | S127: 0.242216438 | V127: 121 | W127: =1/入力部分!$I$35/(2*3.14)^0.5*EXP(-1/2*((V127-入力部分!$I$27/2)/入力部分!$I$35)^2) -> 3.419369272e-14 | X127: 4.137436819e-12
H128: 122 | I128: =(入力部分!D$7*M128+入力部分!D$8*R128+入力部分!D$9*W128)/(入力部分!D$7+入力部分!D$8+入力部分!D$9) -> 0.002128948457 | L128: 122 | M128: =1/入力部分!I$33/(2*3.14)^0.5*EXP(-1/2*((L128-入力部分!I$25)/入力部分!I$33)^2) -> 0.003744979193 | N128: 0.4568874616 | Q128: 122 | R128: =1/入力部分!I$34/(2*3.14)^0.5*EXP(-1/2*((Q128-入力部分!I$26/2)/入力部分!I$34)^2) -> 0.001932216692 | S128: 0.2357304364 | V128: 122 | W128: =1/入力部分!$I$35/(2*3.14)^0.5*EXP(-1/2*((V128-入力部分!$I$27/2)/入力部分!$I$35)^2) -> 2.08319038e-14 | X128: 2.541492263e-12
H129: 123 | I129: =(入力部分!D$7*M129+入力部分!D$8*R129+入力部分!D$9*W129)/(入力部分!D$7+入力部分!D$8+入力部分!D$9) -> 0.002105693109 | L129: 123 | M129: =1/入力部分!I$33/(2*3.14)^0.5*EXP(-1/2*((L129-入力部分!I$25)/入力部分!I$33)^2) -> 0.003750928325 | N129: 0.4613641839 | Q129: 123 | R129: =1/入力部分!I$34/(2*3.14)^0.5*EXP(-1/2*((Q129-入力部分!I$26/2)/入力部分!I$34)^2) -> 0.001864253299 | S129: 0.2293031558 | V129: 123 | W129: =1/入力部分!$I$35/(2*3.14)^0.5*EXP(-1/2*((V129-入力部分!$I$27/2)/入力部分!$I$35)^2) -> 1.263518835e-14 | X129: 1.554128167e-12
H130: 124 | I130: =(入力部分!D$7*M130+入力部分!D$8*R130+入力部分!D$9*W130)/(入力部分!D$7+入力部分!D$8+入力部分!D$9) -> 0.002082917284 | L130: 124 | M130: =1/入力部分!I$33/(2*3.14)^0.5*EXP(-1/2*((L130-入力部分!I$25)/入力部分!I$33)^2) -> 0.003756546162 | N130: 0.4658117241 | Q130: 124 | R130: =1/入力部分!I$34/(2*3.14)^0.5*EXP(-1/2*((Q130-入力部分!I$26/2)/入力部分!I$34)^2) -> 0.001797899929 | S130: 0.2229395912 | V130: 124 | W130: =1/入力部分!$I$35/(2*3.14)^0.5*EXP(-1/2*((V130-入力部分!$I$27/2)/入力部分!$I$35)^2) -> 7.629644132e-15 | X130: 9.460758724e-13
H131: 125 | I131: =(入力部分!D$7*M131+入力部分!D$8*R131+入力部分!D$9*W131)/(入力部分!D$7+入力部分!D$8+入力部分!D$9) -> 0.002060620135 | L131: 125 | M131: =1/入力部分!I$33/(2*3.14)^0.5*EXP(-1/2*((L131-入力部分!I$25)/入力部分!I$33)^2) -> 0.003761831188 | N131: 0.4702288985 | Q131: 125 | R131: =1/入力部分!I$34/(2*3.14)^0.5*EXP(-1/2*((Q131-入力部分!I$26/2)/入力部分!I$34)^2) -> 0.001733155838 | S131: 0.2166444798 | V131: 125 | W131: =1/入力部分!$I$35/(2*3.14)^0.5*EXP(-1/2*((V131-入力部分!$I$27/2)/入力部分!$I$35)^2) -> 4.586661029e-15 | X131: 5.733326286e-13
H132: 126 | I132: =(入力部分!D$7*M132+入力部分!D$8*R132+入力部分!D$9*W132)/(入力部分!D$7+入力部分!D$8+入力部分!D$9) -> 0.002038800085 | L132: 126 | M132: =1/入力部分!I$33/(2*3.14)^0.5*EXP(-1/2*((L132-入力部分!I$25)/入力部分!I$33)^2) -> 0.003766781976 | N132: 0.474614529 | Q132: 126 | R132: =1/入力部分!I$34/(2*3.14)^0.5*EXP(-1/2*((Q132-入力部分!I$26/2)/入力部分!I$34)^2) -> 0.001670018252 | S132: 0.2104222997 | V132: 126 | W132: =1/入力部分!$I$35/(2*3.14)^0.5*EXP(-1/2*((V132-入力部分!$I$27/2)/入力部分!$I$35)^2) -> 2.745104055e-15 | X132: 3.458831109e-13
H133: 127 | I133: =(入力部分!D$7*M133+入力部分!D$8*R133+入力部分!D$9*W133)/(入力部分!D$7+入力部分!D$8+入力部分!D$9) -> 0.002017454862 | L133: 127 | M133: =1/入力部分!I$33/(2*3.14)^0.5*EXP(-1/2*((L133-入力部分!I$25)/入力部分!I$33)^2) -> 0.003771397187 | N133: 0.4789674428 | Q133: 127 | R133: =1/入力部分!I$34/(2*3.14)^0.5*EXP(-1/2*((Q133-入力部分!I$26/2)/入力部分!I$34)^2) -> 0.001608482444 | S133: 0.2042772703 | V133: 127 | W133: =1/入力部分!$I$35/(2*3.14)^0.5*EXP(-1/2*((V133-入力部分!$I$27/2)/入力部分!$I$35)^2) -> 1.635651512e-15 | X133: 2.077277421e-13
H134: 128 | I134: =(入力部分!D$7*M134+入力部分!D$8*R134+入力部分!D$9*W134)/(入力部分!D$7+入力部分!D$8+入力部分!D$9) -> 0.00199658152 | L134: 128 | M134: =1/入力部分!I$33/(2*3.14)^0.5*EXP(-1/2*((L134-入力部分!I$25)/入力部分!I$33)^2) -> 0.003775675573 | N134: 0.4832864733 | Q134: 128 | R134: =1/入力部分!I$34/(2*3.14)^0.5*EXP(-1/2*((Q134-入力部分!I$26/2)/入力部分!I$34)^2) -> 0.001548541813 | S134: 0.1982133521 | V134: 128 | W134: =1/入力部分!$I$35/(2*3.14)^0.5*EXP(-1/2*((V134-入力部分!$I$27/2)/入力部分!$I$35)^2) -> 9.702698807e-16 | X134: 1.241945447e-13
H135: 129 | I135: =(入力部分!D$7*M135+入力部分!D$8*R135+入力部分!D$9*W135)/(入力部分!D$7+入力部分!D$8+入力部分!D$9) -> 0.001976176478 | L135: 129 | M135: =1/入力部分!I$33/(2*3.14)^0.5*EXP(-1/2*((L135-入力部分!I$25)/入力部分!I$33)^2) -> 0.003779615974 | N135: =L135*$M135 -> 0.4875704606 | Q135: 129 | R135: =1/入力部分!I$34/(2*3.14)^0.5*EXP(-1/2*((Q135-入力部分!I$26/2)/入力部分!I$34)^2) -> 0.001490187966 | S135: =Q135*$R135 -> 0.1922342477 | V135: 129 | W135: =1/入力部分!$I$35/(2*3.14)^0.5*EXP(-1/2*((V135-入力部分!$I$27/2)/入力部分!$I$35)^2) -> 5.730125356e-16 | X135: =V135*$W135 -> 7.39186171e-14
H136: 130 | I136: =(入力部分!D$7*M136+入力部分!D$8*R136+入力部分!D$9*W136)/(入力部分!D$7+入力部分!D$8+入力部分!D$9) -> 0.001956235545 | L136: 130 | M136: =1/入力部分!I$33/(2*3.14)^0.5*EXP(-1/2*((L136-入力部分!I$25)/入力部分!I$33)^2) -> 0.003783217323 | N136: 0.491818252 | Q136: 130 | R136: =1/入力部分!I$34/(2*3.14)^0.5*EXP(-1/2*((Q136-入力部分!I$26/2)/入力部分!I$34)^2) -> 0.001433410798 | S136: 0.1863434038 | V136: 130 | W136: =1/入力部分!$I$35/(2*3.14)^0.5*EXP(-1/2*((V136-入力部分!$I$27/2)/入力部分!$I$35)^2) -> 3.369034809e-16 | X136: 4.379745252e-14
H137: 131 | I137: =(入力部分!D$7*M137+入力部分!D$8*R137+入力部分!D$9*W137)/(入力部分!D$7+入力部分!D$8+入力部分!D$9) -> 0.001936753956 | L137: 131 | M137: =1/入力部分!I$33/(2*3.14)^0.5*EXP(-1/2*((L137-入力部分!I$25)/入力部分!I$33)^2) -> 0.003786478643 | N137: 0.4960287022 | Q137: 131 | R137: =1/入力部分!I$34/(2*3.14)^0.5*EXP(-1/2*((Q137-入力部分!I$26/2)/入力部分!I$34)^2) -> 0.001378198572 | S137: 0.180544013 | V137: 131 | W137: =1/入力部分!$I$35/(2*3.14)^0.5*EXP(-1/2*((V137-入力部分!$I$27/2)/入力部分!$I$35)^2) -> 1.972044341e-16 | X137: 2.583378086e-14
H138: 132 | I138: =(入力部分!D$7*M138+入力部分!D$8*R138+入力部分!D$9*W138)/(入力部分!D$7+入力部分!D$8+入力部分!D$9) -> 0.001917726395 | L138: 132 | M138: =1/入力部分!I$33/(2*3.14)^0.5*EXP(-1/2*((L138-入力部分!I$25)/入力部分!I$33)^2) -> 0.003789399049 | N138: 0.5002006745 | Q138: 132 | R138: =1/入力部分!I$34/(2*3.14)^0.5*EXP(-1/2*((Q138-入力部分!I$26/2)/入力部分!I$34)^2) -> 0.001324538004 | S138: 0.1748390165 | V138: 132 | W138: =1/入力部分!$I$35/(2*3.14)^0.5*EXP(-1/2*((V138-入力部分!$I$27/2)/入力部分!$I$35)^2) -> 1.149205393e-16 | X138: 1.516951119e-14
H139: 133 | I139: =(入力部分!D$7*M139+入力部分!D$8*R139+入力部分!D$9*W139)/(入力部分!D$7+入力部分!D$8+入力部分!D$9) -> 0.001899147034 | L139: 133 | M139: =1/入力部分!I$33/(2*3.14)^0.5*EXP(-1/2*((L139-入力部分!I$25)/入力部分!I$33)^2) -> 0.003791977748 | N139: 0.5043330405 | Q139: 133 | R139: =1/入力部分!I$34/(2*3.14)^0.5*EXP(-1/2*((Q139-入力部分!I$26/2)/入力部分!I$34)^2) -> 0.001272414342 | S139: 0.1692311076 | V139: 133 | W139: =1/入力部分!$I$35/(2*3.14)^0.5*EXP(-1/2*((V139-入力部分!$I$27/2)/入力部分!$I$35)^2) -> 6.667276059e-17 | X139: 8.867477158e-15
H140: 134 | I140: =(入力部分!D$7*M140+入力部分!D$8*R140+入力部分!D$9*W140)/(入力部分!D$7+入力部分!D$8+入力部分!D$9) -> 0.00188100956 | L140: 134 | M140: =1/入力部分!I$33/(2*3.14)^0.5*EXP(-1/2*((L140-入力部分!I$25)/入力部分!I$33)^2) -> 0.003794214041 | N140: 0.5084246815 | Q140: 134 | R140: =1/入力部分!I$34/(2*3.14)^0.5*EXP(-1/2*((Q140-入力部分!I$26/2)/入力部分!I$34)^2) -> 0.001221811454 | S140: 0.1637227348 | V140: 134 | W140: =1/入力部分!$I$35/(2*3.14)^0.5*EXP(-1/2*((V140-入力部分!$I$27/2)/入力部分!$I$35)^2) -> 3.850960126e-17 | X140: 5.160286569e-15
H141: 135 | I141: =(入力部分!D$7*M141+入力部分!D$8*R141+入力部分!D$9*W141)/(入力部分!D$7+入力部分!D$8+入力部分!D$9) -> 0.001863307207 | L141: 135 | M141: =1/入力部分!I$33/(2*3.14)^0.5*EXP(-1/2*((L141-入力部分!I$25)/入力部分!I$33)^2) -> 0.003796107318 | N141: 0.512474488 | Q141: 135 | R141: =1/入力部分!I$34/(2*3.14)^0.5*EXP(-1/2*((Q141-入力部分!I$26/2)/入力部分!I$34)^2) -> 0.001172711901 | S141: 0.1583161066 | V141: 135 | W141: =1/入力部分!$I$35/(2*3.14)^0.5*EXP(-1/2*((V141-入力部分!$I$27/2)/入力部分!$I$35)^2) -> 2.214417009e-17 | X141: 2.989462962e-15
H142: 136 | I142: =(入力部分!D$7*M142+入力部分!D$8*R142+入力部分!D$9*W142)/(入力部分!D$7+入力部分!D$8+入力部分!D$9) -> 0.001846032785 | L142: 136 | M142: =1/入力部分!I$33/(2*3.14)^0.5*EXP(-1/2*((L142-入力部分!I$25)/入力部分!I$33)^2) -> 0.003797657066 | N142: 0.516481361 | Q142: 136 | R142: =1/入力部分!I$34/(2*3.14)^0.5*EXP(-1/2*((Q142-入力部分!I$26/2)/入力部分!I$34)^2) -> 0.001125097027 | S142: 0.1530131956 | V142: 136 | W142: =1/入力部分!$I$35/(2*3.14)^0.5*EXP(-1/2*((V142-入力部分!$I$27/2)/入力部分!$I$35)^2) -> 1.26770907e-17 | X142: 1.724084335e-15
H143: 137 | I143: =(入力部分!D$7*M143+入力部分!D$8*R143+入力部分!D$9*W143)/(入力部分!D$7+入力部分!D$8+入力部分!D$9) -> 0.001829178711 | L143: 137 | M143: =1/入力部分!I$33/(2*3.14)^0.5*EXP(-1/2*((L143-入力部分!I$25)/入力部分!I$33)^2) -> 0.003798862863 | N143: 0.5204442122 | Q143: 137 | R143: =1/入力部分!I$34/(2*3.14)^0.5*EXP(-1/2*((Q143-入力部分!I$26/2)/入力部分!I$34)^2) -> 0.001078947034 | S143: 0.1478157437 | V143: 137 | W143: =1/入力部分!$I$35/(2*3.14)^0.5*EXP(-1/2*((V143-入力部分!$I$27/2)/入力部分!$I$35)^2) -> 7.225195268e-18 | X143: 9.898517517e-16
H144: 138 | I144: =(入力部分!D$7*M144+入力部分!D$8*R144+入力部分!D$9*W144)/(入力部分!D$7+入力部分!D$8+入力部分!D$9) -> 0.001812737043 | L144: 138 | M144: =1/入力部分!I$33/(2*3.14)^0.5*EXP(-1/2*((L144-入力部分!I$25)/入力部分!I$33)^2) -> 0.003799724381 | N144: 0.5243619645 | Q144: 138 | R144: =1/入力部分!I$34/(2*3.14)^0.5*EXP(-1/2*((Q144-入力部分!I$26/2)/入力部分!I$34)^2) -> 0.001034241067 | S144: 0.1427252672 | V144: 138 | W144: =1/入力部分!$I$35/(2*3.14)^0.5*EXP(-1/2*((V144-入力部分!$I$27/2)/入力部分!$I$35)^2) -> 4.099674555e-18 | X144: 5.657550886e-16
H145: 139 | I145: =(入力部分!D$7*M145+入力部分!D$8*R145+入力部分!D$9*W145)/(入力部分!D$7+入力部分!D$8+入力部分!D$9) -> 0.001796699502 | L145: 139 | M145: =1/入力部分!I$33/(2*3.14)^0.5*EXP(-1/2*((L145-入力部分!I$25)/入力部分!I$33)^2) -> 0.003800241385 | N145: 0.5282335525 | Q145: 139 | R145: =1/入力部分!I$34/(2*3.14)^0.5*EXP(-1/2*((Q145-入力部分!I$26/2)/入力部分!I$34)^2) -> 0.0009909572863 | S145: 0.1377430628 | V145: 139 | W145: =1/入力部分!$I$35/(2*3.14)^0.5*EXP(-1/2*((V145-入力部分!$I$27/2)/入力部分!$I$35)^2) -> 2.315895604e-18 | X145: 3.219094889e-16
H146: 140 | I146: =(入力部分!D$7*M146+入力部分!D$8*R146+入力部分!D$9*W146)/(入力部分!D$7+入力部分!D$8+入力部分!D$9) -> 0.001781057508 | L146: 140 | M146: =1/入力部分!I$33/(2*3.14)^0.5*EXP(-1/2*((L146-入力部分!I$25)/入力部分!I$33)^2) -> 0.003800413736 | N146: 0.532057923 | Q146: 140 | R146: =1/入力部分!I$34/(2*3.14)^0.5*EXP(-1/2*((Q146-入力部分!I$26/2)/入力部分!I$34)^2) -> 0.0009490729518 | S146: 0.1328702133 | V146: 140 | W146: =1/入力部分!$I$35/(2*3.14)^0.5*EXP(-1/2*((V146-入力部分!$I$27/2)/入力部分!$I$35)^2) -> 1.302441952e-18 | X146: 1.823418733e-16
H147: 141 | I147: =(入力部分!D$7*M147+入力部分!D$8*R147+入力部分!D$9*W147)/(入力部分!D$7+入力部分!D$8+入力部分!D$9) -> 0.001765802205 | L147: 141 | M147: =1/入力部分!I$33/(2*3.14)^0.5*EXP(-1/2*((L147-入力部分!I$25)/入力部分!I$33)^2) -> 0.003800241385 | N147: 0.5358340353 | Q147: 141 | R147: =1/入力部分!I$34/(2*3.14)^0.5*EXP(-1/2*((Q147-入力部分!I$26/2)/入力部分!I$34)^2) -> 0.0009085644953 | S147: 0.1281075938 | V147: 141 | W147: =1/入力部分!$I$35/(2*3.14)^0.5*EXP(-1/2*((V147-入力部分!$I$27/2)/入力部分!$I$35)^2) -> 7.292351214e-19 | X147: 1.028221521e-16
H148: 142 | I148: =(入力部分!D$7*M148+入力部分!D$8*R148+入力部分!D$9*W148)/(入力部分!D$7+入力部分!D$8+入力部分!D$9) -> 0.001750924492 | L148: 142 | M148: =1/入力部分!I$33/(2*3.14)^0.5*EXP(-1/2*((L148-入力部分!I$25)/入力部分!I$33)^2) -> 0.003799724381 | N148: 0.539560862 | Q148: 142 | R148: =1/入力部分!I$34/(2*3.14)^0.5*EXP(-1/2*((Q148-入力部分!I$26/2)/入力部分!I$34)^2) -> 0.0008694075971 | S148: 0.1234558788 | V148: 142 | W148: =1/入力部分!$I$35/(2*3.14)^0.5*EXP(-1/2*((V148-入力部分!$I$27/2)/入力部分!$I$35)^2) -> 4.064869241e-19 | X148: 5.772114323e-17
H149: 143 | I149: =(入力部分!D$7*M149+入力部分!D$8*R149+入力部分!D$9*W149)/(入力部分!D$7+入力部分!D$8+入力部分!D$9) -> 0.001736415046 | L149: 143 | M149: =1/入力部分!I$33/(2*3.14)^0.5*EXP(-1/2*((L149-入力部分!I$25)/入力部分!I$33)^2) -> 0.003798862863 | N149: 0.5432373894 | Q149: 143 | R149: =1/入力部分!I$34/(2*3.14)^0.5*EXP(-1/2*((Q149-入力部分!I$26/2)/入力部分!I$34)^2) -> 0.0008315772591 | S149: 0.118915548 | V149: 143 | W149: =1/入力部分!$I$35/(2*3.14)^0.5*EXP(-1/2*((V149-入力部分!$I$27/2)/入力部分!$I$35)^2) -> 2.255772952e-19 | X149: 3.225755321e-17
H150: 144 | I150: =(入力部分!D$7*M150+入力部分!D$8*R150+入力部分!D$9*W150)/(入力部分!D$7+入力部分!D$8+入力部分!D$9) -> 0.001722264353 | L150: 144 | M150: =1/入力部分!I$33/(2*3.14)^0.5*EXP(-1/2*((L150-入力部分!I$25)/入力部分!I$33)^2) -> 0.003797657066 | N150: 0.5468626175 | Q150: 144 | R150: =1/入力部分!I$34/(2*3.14)^0.5*EXP(-1/2*((Q150-入力部分!I$26/2)/入力部分!I$34)^2) -> 0.0007950478763 | S150: 0.1144868942 | V150: 144 | W150: =1/入力部分!$I$35/(2*3.14)^0.5*EXP(-1/2*((V150-入力部分!$I$27/2)/入力部分!$I$35)^2) -> 1.246275313e-19 | X150: 1.794636451e-17
H151: 145 | I151: =(入力部分!D$7*M151+入力部分!D$8*R151+入力部分!D$9*W151)/(入力部分!D$7+入力部分!D$8+入力部分!D$9) -> 0.001708462734 | L151: 145 | M151: =1/入力部分!I$33/(2*3.14)^0.5*EXP(-1/2*((L151-入力部分!I$25)/入力部分!I$33)^2) -> 0.003796107318 | N151: 0.5504355611 | Q151: 145 | R151: =1/入力部分!I$34/(2*3.14)^0.5*EXP(-1/2*((Q151-入力部分!I$26/2)/入力部分!I$34)^2) -> 0.000759793307 | S151: 0.1101700295 | V151: 145 | W151: =1/入力部分!$I$35/(2*3.14)^0.5*EXP(-1/2*((V151-入力部分!$I$27/2)/入力部分!$I$35)^2) -> 6.854920178e-20 | X151: 9.939634257e-18
H152: 146 | I152: =(入力部分!D$7*M152+入力部分!D$8*R152+入力部分!D$9*W152)/(入力部分!D$7+入力部分!D$8+入力部分!D$9) -> 0.001695000368 | L152: 146 | M152: =1/入力部分!I$33/(2*3.14)^0.5*EXP(-1/2*((L152-入力部分!I$25)/入力部分!I$33)^2) -> 0.003794214041 | N152: 0.55395525 | Q152: 146 | R152: =1/入力部分!I$34/(2*3.14)^0.5*EXP(-1/2*((Q152-入力部分!I$26/2)/入力部分!I$34)^2) -> 0.0007257869404 | S152: 0.1059648933 | V152: 146 | W152: =1/入力部分!$I$35/(2*3.14)^0.5*EXP(-1/2*((V152-入力部分!$I$27/2)/入力部分!$I$35)^2) -> 3.753709107e-20 | X152: 5.480415296e-18
H153: 147 | I153: =(入力部分!D$7*M153+入力部分!D$8*R153+入力部分!D$9*W153)/(入力部分!D$7+入力部分!D$8+入力部分!D$9) -> 0.001681867317 | L153: 147 | M153: =1/入力部分!I$33/(2*3.14)^0.5*EXP(-1/2*((L153-入力部分!I$25)/入力部分!I$33)^2) -> 0.003791977748 | N153: 0.557420729 | Q153: 147 | R153: =1/入力部分!I$34/(2*3.14)^0.5*EXP(-1/2*((Q153-入力部分!I$26/2)/入力部分!I$34)^2) -> 0.0006930017628 | S153: 0.1018712591 | V153: 147 | W153: =1/入力部分!$I$35/(2*3.14)^0.5*EXP(-1/2*((V153-入力部分!$I$27/2)/入力部分!$I$35)^2) -> 2.046391053e-20 | X153: 3.008194848e-18
H154: 148 | I154: =(入力部分!D$7*M154+入力部分!D$8*R154+入力部分!D$9*W154)/(入力部分!D$7+入力部分!D$8+入力部分!D$9) -> 0.001669053551 | L154: 148 | M154: =1/入力部分!I$33/(2*3.14)^0.5*EXP(-1/2*((L154-入力部分!I$25)/入力部分!I$33)^2) -> 0.003789399049 | N154: 0.5608310593 | Q154: 148 | R154: =1/入力部分!I$34/(2*3.14)^0.5*EXP(-1/2*((Q154-入力部分!I$26/2)/入力部分!I$34)^2) -> 0.0006614104213 | S154: 0.09788874235 | V154: 148 | W154: =1/入力部分!$I$35/(2*3.14)^0.5*EXP(-1/2*((V154-入力部分!$I$27/2)/入力部分!$I$35)^2) -> 1.110673589e-20 | X154: 1.643796912e-18
H155: 149 | I155: =(入力部分!D$7*M155+入力部分!D$8*R155+入力部分!D$9*W155)/(入力部分!D$7+入力部分!D$8+入力部分!D$9) -> 0.001656548973 | L155: 149 | M155: =1/入力部分!I$33/(2*3.14)^0.5*EXP(-1/2*((L155-入力部分!I$25)/入力部分!I$33)^2) -> 0.003786478643 | N155: 0.5641853178 | Q155: 149 | R155: =1/入力部分!I$34/(2*3.14)^0.5*EXP(-1/2*((Q155-入力部分!I$26/2)/入力部分!I$34)^2) -> 0.0006309852855 | S155: 0.09401680754 | V155: 149 | W155: =1/入力部分!$I$35/(2*3.14)^0.5*EXP(-1/2*((V155-入力部分!$I$27/2)/入力部分!$I$35)^2) -> 6.001420589e-21 | X155: 8.942116677e-19
H156: 150 | I156: =(入力部分!D$7*M156+入力部分!D$8*R156+入力部分!D$9*W156)/(入力部分!D$7+入力部分!D$8+入力部分!D$9) -> 0.001644343436 | L156: 150 | M156: =1/入力部分!I$33/(2*3.14)^0.5*EXP(-1/2*((L156-入力部分!I$25)/入力部分!I$33)^2) -> 0.003783217323 | N156: 0.5674825984 | Q156: 150 | R156: =1/入力部分!I$34/(2*3.14)^0.5*EXP(-1/2*((Q156-入力部分!I$26/2)/入力部分!I$34)^2) -> 0.0006016985072 | S156: 0.09025477608 | V156: 150 | W156: =1/入力部分!$I$35/(2*3.14)^0.5*EXP(-1/2*((V156-入力部分!$I$27/2)/入力部分!$I$35)^2) -> 3.228430823e-21 | X156: 4.842646235e-19
H157: 151 | I157: =(入力部分!D$7*M157+入力部分!D$8*R157+入力部分!D$9*W157)/(入力部分!D$7+入力部分!D$8+入力部分!D$9) -> 0.001632426769 | L157: 151 | M157: =1/入力部分!I$33/(2*3.14)^0.5*EXP(-1/2*((L157-入力部分!I$25)/入力部分!I$33)^2) -> 0.003779615974 | N157: 0.570722012 | Q157: 151 | R157: =1/入力部分!I$34/(2*3.14)^0.5*EXP(-1/2*((Q157-入力部分!I$26/2)/入力部分!I$34)^2) -> 0.0005735220774 | S157: 0.08660183369 | V157: 151 | W157: =1/入力部分!$I$35/(2*3.14)^0.5*EXP(-1/2*((V157-入力部分!$I$27/2)/入力部分!$I$35)^2) -> 1.729014791e-21 | X157: 2.610812335e-19
H158: 152 | I158: =(入力部分!D$7*M158+入力部分!D$8*R158+入力部分!D$9*W158)/(入力部分!D$7+入力部分!D$8+入力部分!D$9) -> 0.001620788795 | L158: 152 | M158: =1/入力部分!I$33/(2*3.14)^0.5*EXP(-1/2*((L158-入力部分!I$25)/入力部分!I$33)^2) -> 0.003775675573 | N158: 0.573902687 | Q158: 152 | R158: =1/入力部分!I$34/(2*3.14)^0.5*EXP(-1/2*((Q158-入力部分!I$26/2)/入力部分!I$34)^2) -> 0.0005464278815 | S158: 0.08305703799 | V158: 152 | W158: =1/入力部分!$I$35/(2*3.14)^0.5*EXP(-1/2*((V158-入力部分!$I$27/2)/入力部分!$I$35)^2) -> 9.218828471e-22 | X158: 1.401261928e-19
H159: 153 | I159: =(入力部分!D$7*M159+入力部分!D$8*R159+入力部分!D$9*W159)/(入力部分!D$7+入力部分!D$8+入力部分!D$9) -> 0.001609419352 | L159: 153 | M159: =1/入力部分!I$33/(2*3.14)^0.5*EXP(-1/2*((L159-入力部分!I$25)/入力部分!I$33)^2) -> 0.003771397187 | N159: 0.5770237696 | Q159: 153 | R159: =1/入力部分!I$34/(2*3.14)^0.5*EXP(-1/2*((Q159-入力部分!I$26/2)/入力部分!I$34)^2) -> 0.0005203877515 | S159: 0.07961932597 | V159: 153 | W159: =1/入力部分!$I$35/(2*3.14)^0.5*EXP(-1/2*((V159-入力部分!$I$27/2)/入力部分!$I$35)^2) -> 4.893533464e-22 | X159: 7.4871062e-20
H160: 154 | I160: =(入力部分!D$7*M160+入力部分!D$8*R160+入力部分!D$9*W160)/(入力部分!D$7+入力部分!D$8+入力部分!D$9) -> 0.00159830831 | L160: 154 | M160: =1/入力部分!I$33/(2*3.14)^0.5*EXP(-1/2*((L160-入力部分!I$25)/入力部分!I$33)^2) -> 0.003766781976 | N160: 0.5800844243 | Q160: 154 | R160: =1/入力部分!I$34/(2*3.14)^0.5*EXP(-1/2*((Q160-入力部分!I$26/2)/入力部分!I$34)^2) -> 0.0004953735165 | S160: 0.07628752154 | V160: 154 | W160: =1/入力部分!$I$35/(2*3.14)^0.5*EXP(-1/2*((V160-入力部分!$I$27/2)/入力部分!$I$35)^2) -> 2.58606355e-22 | X160: 3.982537866e-20
H161: 155 | I161: =(入力部分!D$7*M161+入力部分!D$8*R161+入力部分!D$9*W161)/(入力部分!D$7+入力部分!D$8+入力部分!D$9) -> 0.00158744559 | L161: 155 | M161: =1/入力部分!I$33/(2*3.14)^0.5*EXP(-1/2*((L161-入力部分!I$25)/入力部分!I$33)^2) -> 0.003761831188 | N161: 0.5830838342 | Q161: 155 | R161: =1/入力部分!I$34/(2*3.14)^0.5*EXP(-1/2*((Q161-入力部分!I$26/2)/入力部分!I$34)^2) -> 0.0004713570507 | S161: 0.07306034286 | V161: 155 | W161: =1/入力部分!$I$35/(2*3.14)^0.5*EXP(-1/2*((V161-入力部分!$I$27/2)/入力部分!$I$35)^2) -> 1.360584834e-22 | X161: 2.108906493e-20
H162: 156 | I162: =(入力部分!D$7*M162+入力部分!D$8*R162+入力部分!D$9*W162)/(入力部分!D$7+入力部分!D$8+入力部分!D$9) -> 0.00157682118 | L162: 156 | M162: =1/入力部分!I$33/(2*3.14)^0.5*EXP(-1/2*((L162-入力部分!I$25)/入力部分!I$33)^2) -> 0.003756546162 | N162: 0.5860212012 | Q162: 156 | R162: =1/入力部分!I$34/(2*3.14)^0.5*EXP(-1/2*((Q162-入力部分!I$26/2)/入力部分!I$34)^2) -> 0.0004483103185 | S162: 0.06993640969 | V162: 156 | W162: =1/入力部分!$I$35/(2*3.14)^0.5*EXP(-1/2*((V162-入力部分!$I$27/2)/入力部分!$I$35)^2) -> 7.126591422e-23 | X162: 1.111748262e-20
H163: 157 | I163: =(入力部分!D$7*M163+入力部分!D$8*R163+入力部分!D$9*W163)/(入力部分!D$7+入力部分!D$8+入力部分!D$9) -> 0.001566425154 | L163: 157 | M163: =1/入力部分!I$33/(2*3.14)^0.5*EXP(-1/2*((L163-入力部分!I$25)/入力部分!I$33)^2) -> 0.003750928325 | N163: 0.588895747 | Q163: 157 | R163: =1/入力部分!I$34/(2*3.14)^0.5*EXP(-1/2*((Q163-入力部分!I$26/2)/入力部分!I$34)^2) -> 0.000426205418 | S163: 0.06691425062 | V163: 157 | W163: =1/入力部分!$I$35/(2*3.14)^0.5*EXP(-1/2*((V163-入力部分!$I$27/2)/入力部分!$I$35)^2) -> 3.716275465e-23 | X163: 5.834552479e-21
H164: 158 | I164: =(入力部分!D$7*M164+入力部分!D$8*R164+入力部分!D$9*W164)/(入力部分!D$7+入力部分!D$8+入力部分!D$9) -> 0.00155624768 | L164: 158 | M164: =1/入力部分!I$33/(2*3.14)^0.5*EXP(-1/2*((L164-入力部分!I$25)/入力部分!I$33)^2) -> 0.003744979193 | N164: 0.5917067125 | Q164: 158 | R164: =1/入力部分!I$34/(2*3.14)^0.5*EXP(-1/2*((Q164-入力部分!I$26/2)/入力部分!I$34)^2) -> 0.0004050146211 | S164: 0.06399231013 | V164: 158 | W164: =1/入力部分!$I$35/(2*3.14)^0.5*EXP(-1/2*((V164-入力部分!$I$27/2)/入力部分!$I$35)^2) -> 1.929317652e-23 | X164: 3.048321889e-21
H165: 159 | I165: =(入力部分!D$7*M165+入力部分!D$8*R165+入力部分!D$9*W165)/(入力部分!D$7+入力部分!D$8+入力部分!D$9) -> 0.001546279044 | L165: 159 | M165: =1/入力部分!I$33/(2*3.14)^0.5*EXP(-1/2*((L165-入力部分!I$25)/入力部分!I$33)^2) -> 0.00373870037 | N165: 0.5944533589 | Q165: 159 | R165: =1/入力部分!I$34/(2*3.14)^0.5*EXP(-1/2*((Q165-入力部分!I$26/2)/入力部分!I$34)^2) -> 0.0003847104126 | S165: 0.06116895561 | V165: 159 | W165: =1/入力部分!$I$35/(2*3.14)^0.5*EXP(-1/2*((V165-入力部分!$I$27/2)/入力部分!$I$35)^2) -> 9.971704028e-24 | X165: 1.585500941e-21
H166: 160 | I166: =(入力部分!D$7*M166+入力部分!D$8*R166+入力部分!D$9*W166)/(入力部分!D$7+入力部分!D$8+入力部分!D$9) -> 0.001536509652 | L166: 160 | M166: =1/入力部分!I$33/(2*3.14)^0.5*EXP(-1/2*((L166-入力部分!I$25)/入力部分!I$33)^2) -> 0.003732093548 | N166: 0.5971349676 | Q166: 160 | R166: =1/入力部分!I$34/(2*3.14)^0.5*EXP(-1/2*((Q166-入力部分!I$26/2)/入力部分!I$34)^2) -> 0.0003652655257 | S166: 0.05844248411 | V166: 160 | W166: =1/入力部分!$I$35/(2*3.14)^0.5*EXP(-1/2*((V166-入力部分!$I$27/2)/入力部分!$I$35)^2) -> 5.13103319e-24 | X166: 8.209653104e-22
H167: 161 | I167: =(入力部分!D$7*M167+入力部分!D$8*R167+入力部分!D$9*W167)/(入力部分!D$7+入力部分!D$8+入力部分!D$9) -> 0.001526930054 | L167: 161 | M167: =1/入力部分!I$33/(2*3.14)^0.5*EXP(-1/2*((L167-入力部分!I$25)/入力部分!I$33)^2) -> 0.003725160502 | N167: 0.5997508408 | Q167: 161 | R167: =1/入力部分!I$34/(2*3.14)^0.5*EXP(-1/2*((Q167-入力部分!I$26/2)/入力部分!I$34)^2) -> 0.0003466529757 | S167: 0.05581112909 | V167: 161 | W167: =1/入力部分!$I$35/(2*3.14)^0.5*EXP(-1/2*((V167-入力部分!$I$27/2)/入力部分!$I$35)^2) -> 2.628512644e-24 | X167: 4.231905357e-22
H168: 162 | I168: =(入力部分!D$7*M168+入力部分!D$8*R168+入力部分!D$9*W168)/(入力部分!D$7+入力部分!D$8+入力部分!D$9) -> 0.001517530945 | L168: 162 | M168: =1/入力部分!I$33/(2*3.14)^0.5*EXP(-1/2*((L168-入力部分!I$25)/入力部分!I$33)^2) -> 0.003717903095 | N168: 0.6023003014 | Q168: 162 | R168: =1/入力部分!I$34/(2*3.14)^0.5*EXP(-1/2*((Q168-入力部分!I$26/2)/入力部分!I$34)^2) -> 0.0003288460916 | S168: 0.05327306684 | V168: 162 | W168: =1/入力部分!$I$35/(2*3.14)^0.5*EXP(-1/2*((V168-入力部分!$I$27/2)/入力部分!$I$35)^2) -> 1.340556489e-24 | X168: 2.171701513e-22
H169: 163 | I169: =(入力部分!D$7*M169+入力部分!D$8*R169+入力部分!D$9*W169)/(入力部分!D$7+入力部分!D$8+入力部分!D$9) -> 0.001508303182 | L169: 163 | M169: =1/入力部分!I$33/(2*3.14)^0.5*EXP(-1/2*((L169-入力部分!I$25)/入力部分!I$33)^2) -> 0.003710323275 | N169: 0.6047826938 | Q169: 163 | R169: =1/入力部分!I$34/(2*3.14)^0.5*EXP(-1/2*((Q169-入力部分!I$26/2)/入力部分!I$34)^2) -> 0.0003118185449 | S169: 0.05082642282 | V169: 163 | W169: =1/入力部分!$I$35/(2*3.14)^0.5*EXP(-1/2*((V169-入力部分!$I$27/2)/入力部分!$I$35)^2) -> 6.806595942e-25 | X169: 1.109475139e-22
H170: 164 | I170: =(入力部分!D$7*M170+入力部分!D$8*R170+入力部分!D$9*W170)/(入力部分!D$7+入力部分!D$8+入力部分!D$9) -> 0.001499237793 | L170: 164 | M170: =1/入力部分!I$33/(2*3.14)^0.5*EXP(-1/2*((L170-入力部分!I$25)/入力部分!I$33)^2) -> 0.003702423072 | N170: 0.6071973838 | Q170: 164 | R170: =1/入力部分!I$34/(2*3.14)^0.5*EXP(-1/2*((Q170-入力部分!I$26/2)/入力部分!I$34)^2) -> 0.0002955443769 | S170: 0.04846927781 | V170: 164 | W170: =1/入力部分!$I$35/(2*3.14)^0.5*EXP(-1/2*((V170-入力部分!$I$27/2)/入力部分!$I$35)^2) -> 3.440682701e-25 | X170: 5.64271963e-23
H171: 165 | I171: =(入力部分!D$7*M171+入力部分!D$8*R171+入力部分!D$9*W171)/(入力部分!D$7+入力部分!D$8+入力部分!D$9) -> 0.001490325984 | L171: 165 | M171: =1/入力部分!I$33/(2*3.14)^0.5*EXP(-1/2*((L171-入力部分!I$25)/入力部分!I$33)^2) -> 0.0036942046 | N171: 0.609543759 | Q171: 165 | R171: =1/入力部分!I$34/(2*3.14)^0.5*EXP(-1/2*((Q171-入力部分!I$26/2)/入力部分!I$34)^2) -> 0.0002799980231 | S171: 0.04619967382 | V171: 165 | W171: =1/入力部分!$I$35/(2*3.14)^0.5*EXP(-1/2*((V171-入力部分!$I$27/2)/入力部分!$I$35)^2) -> 1.731526249e-25 | X171: 2.857018311e-23
H172: 166 | I172: =(入力部分!D$7*M172+入力部分!D$8*R172+入力部分!D$9*W172)/(入力部分!D$7+入力部分!D$8+入力部分!D$9) -> 0.001481559147 | L172: 166 | M172: =1/入力部分!I$33/(2*3.14)^0.5*EXP(-1/2*((L172-入力部分!I$25)/入力部分!I$33)^2) -> 0.003685670055 | N172: 0.6118212291 | Q172: 166 | R172: =1/入力部分!I$34/(2*3.14)^0.5*EXP(-1/2*((Q172-入力部分!I$26/2)/入力部分!I$34)^2) -> 0.0002651543361 | S172: 0.04401561979 | V172: 166 | W172: =1/入力部分!$I$35/(2*3.14)^0.5*EXP(-1/2*((V172-入力部分!$I$27/2)/入力部分!$I$35)^2) -> 8.675276743e-26 | X172: 1.440095939e-23
H173: 167 | I173: =(入力部分!D$7*M173+入力部分!D$8*R173+入力部分!D$9*W173)/(入力部分!D$7+入力部分!D$8+入力部分!D$9) -> 0.00147292887 | L173: 167 | M173: =1/入力部分!I$33/(2*3.14)^0.5*EXP(-1/2*((L173-入力部分!I$25)/入力部分!I$33)^2) -> 0.003676821713 | N173: 0.6140292261 | Q173: 167 | R173: =1/入力部分!I$34/(2*3.14)^0.5*EXP(-1/2*((Q173-入力部分!I$26/2)/入力部分!I$34)^2) -> 0.0002509886058 | S173: 0.04191509717 | V173: 167 | W173: =1/入力部分!$I$35/(2*3.14)^0.5*EXP(-1/2*((V173-入力部分!$I$27/2)/入力部分!$I$35)^2) -> 4.327204281e-26 | X173: 7.22643115e-24
H174: 168 | I174: =(入力部分!D$7*M174+入力部分!D$8*R174+入力部分!D$9*W174)/(入力部分!D$7+入力部分!D$8+入力部分!D$9) -> 0.001464426941 | L174: 168 | M174: =1/入力部分!I$33/(2*3.14)^0.5*EXP(-1/2*((L174-入力部分!I$25)/入力部分!I$33)^2) -> 0.003667661931 | N174: 0.6161672044 | Q174: 168 | R174: =1/入力部分!I$34/(2*3.14)^0.5*EXP(-1/2*((Q174-入力部分!I$26/2)/入力部分!I$34)^2) -> 0.0002374765784 | S174: 0.03989606517 | V174: 168 | W174: =1/入力部分!$I$35/(2*3.14)^0.5*EXP(-1/2*((V174-入力部分!$I$27/2)/入力部分!$I$35)^2) -> 2.148826053e-26 | X174: 3.610027768e-24
H175: 169 | I175: =(入力部分!D$7*M175+入力部分!D$8*R175+入力部分!D$9*W175)/(入力部分!D$7+入力部分!D$8+入力部分!D$9) -> 0.001456045356 | L175: 169 | M175: =1/入力部分!I$33/(2*3.14)^0.5*EXP(-1/2*((L175-入力部分!I$25)/入力部分!I$33)^2) -> 0.003658193144 | N175: 0.6182346413 | Q175: 169 | R175: =1/入力部分!I$34/(2*3.14)^0.5*EXP(-1/2*((Q175-入力部分!I$26/2)/入力部分!I$34)^2) -> 0.0002245944726 | S175: 0.03795646586 | V175: 169 | W175: =1/入力部分!$I$35/(2*3.14)^0.5*EXP(-1/2*((V175-入力部分!$I$27/2)/入力部分!$I$35)^2) -> 1.062343404e-26 | X175: 1.795360353e-24
H176: 170 | I176: =(入力部分!D$7*M176+入力部分!D$8*R176+入力部分!D$9*W176)/(入力部分!D$7+入力部分!D$8+入力部分!D$9) -> 0.001447776322 | L176: 170 | M176: =1/入力部分!I$33/(2*3.14)^0.5*EXP(-1/2*((L176-入力部分!I$25)/入力部分!I$33)^2) -> 0.003648417865 | N176: 0.6202310371 | Q176: 170 | R176: =1/入力部分!I$34/(2*3.14)^0.5*EXP(-1/2*((Q176-入力部分!I$26/2)/入力部分!I$34)^2) -> 0.0002123189945 | S176: 0.03609422906 | V176: 170 | W176: =1/入力部分!$I$35/(2*3.14)^0.5*EXP(-1/2*((V176-入力部分!$I$27/2)/入力部分!$I$35)^2) -> 5.228756206e-27 | X176: 8.88888555e-25
H177: 171 | I177: =(入力部分!D$7*M177+入力部分!D$8*R177+入力部分!D$9*W177)/(入力部分!D$7+入力部分!D$8+入力部分!D$9) -> 0.001439612263 | L177: 171 | M177: =1/入力部分!I$33/(2*3.14)^0.5*EXP(-1/2*((L177-入力部分!I$25)/入力部分!I$33)^2) -> 0.003638338685 | N177: 0.6221559151 | Q177: 171 | R177: =1/入力部分!I$34/(2*3.14)^0.5*EXP(-1/2*((Q177-入力部分!I$26/2)/入力部分!I$34)^2) -> 0.0002006273505 | S177: 0.03430727693 | V177: 171 | W177: =1/入力部分!$I$35/(2*3.14)^0.5*EXP(-1/2*((V177-入力部分!$I$27/2)/入力部分!$I$35)^2) -> 2.562132955e-27 | X177: 4.381247354e-25
H178: 172 | I178: =(入力部分!D$7*M178+入力部分!D$8*R178+入力部分!D$9*W178)/(入力部分!D$7+入力部分!D$8+入力部分!D$9) -> 0.001431545822 | L178: 172 | M178: =1/入力部分!I$33/(2*3.14)^0.5*EXP(-1/2*((L178-入力部分!I$25)/入力部分!I$33)^2) -> 0.003627958267 | N178: 0.624008822 | Q178: 172 | R178: =1/入力部分!I$34/(2*3.14)^0.5*EXP(-1/2*((Q178-入力部分!I$26/2)/入力部分!I$34)^2) -> 0.0001894972584 | S178: 0.03259352844 | V178: 172 | W178: =1/入力部分!$I$35/(2*3.14)^0.5*EXP(-1/2*((V178-入力部分!$I$27/2)/入力部分!$I$35)^2) -> 1.249898464e-27 | X178: 2.149825359e-25
H179: 173 | I179: =(入力部分!D$7*M179+入力部分!D$8*R179+入力部分!D$9*W179)/(入力部分!D$7+入力部分!D$8+入力部分!D$9) -> 0.001423569866 | L179: 173 | M179: =1/入力部分!I$33/(2*3.14)^0.5*EXP(-1/2*((L179-入力部分!I$25)/入力部分!I$33)^2) -> 0.003617279354 | N179: 0.6257893282 | Q179: 173 | R179: =1/入力部分!I$34/(2*3.14)^0.5*EXP(-1/2*((Q179-入力部分!I$26/2)/入力部分!I$34)^2) -> 0.0001789069568 | S179: 0.03095090353 | V179: 173 | W179: =1/入力部分!$I$35/(2*3.14)^0.5*EXP(-1/2*((V179-入力部分!$I$27/2)/入力部分!$I$35)^2) -> 6.070404186e-28 | X179: 1.050179924e-25
H180: 174 | I180: =(入力部分!D$7*M180+入力部分!D$8*R180+入力部分!D$9*W180)/(入力部分!D$7+入力部分!D$8+入力部分!D$9) -> 0.001415677488 | L180: 174 | M180: =1/入力部分!I$33/(2*3.14)^0.5*EXP(-1/2*((L180-入力部分!I$25)/入力部分!I$33)^2) -> 0.003606304756 | N180: 0.6274970275 | Q180: 174 | R180: =1/入力部分!I$34/(2*3.14)^0.5*EXP(-1/2*((Q180-入力部分!I$26/2)/入力部分!I$34)^2) -> 0.0001688352129 | S180: 0.02937732705 | V180: 174 | W180: =1/入力部分!$I$35/(2*3.14)^0.5*EXP(-1/2*((V180-入力部分!$I$27/2)/入力部分!$I$35)^2) -> 2.935149895e-28 | X180: 5.107160818e-26
H181: 175 | I181: =(入力部分!D$7*M181+入力部分!D$8*R181+入力部分!D$9*W181)/(入力部分!D$7+入力部分!D$8+入力部分!D$9) -> 0.001407862008 | L181: 175 | M181: =1/入力部分!I$33/(2*3.14)^0.5*EXP(-1/2*((L181-入力部分!I$25)/入力部分!I$33)^2) -> 0.003595037359 | N181: 0.6291315378 | Q181: 175 | R181: =1/入力部分!I$34/(2*3.14)^0.5*EXP(-1/2*((Q181-入力部分!I$26/2)/入力部分!I$34)^2) -> 0.000159261329 | S181: 0.02787073258 | V181: 175 | W181: =1/入力部分!$I$35/(2*3.14)^0.5*EXP(-1/2*((V181-入力部分!$I$27/2)/入力部分!$I$35)^2) -> 1.412904356e-28 | X181: 2.472582622e-26
H182: 176 | I182: =(入力部分!D$7*M182+入力部分!D$8*R182+入力部分!D$9*W182)/(入力部分!D$7+入力部分!D$8+入力部分!D$9) -> 0.001400116975 | L182: 176 | M182: =1/入力部分!I$33/(2*3.14)^0.5*EXP(-1/2*((L182-入力部分!I$25)/入力部分!I$33)^2) -> 0.003583480119 | N182: 0.6306925009 | Q182: 176 | R182: =1/入力部分!I$34/(2*3.14)^0.5*EXP(-1/2*((Q182-入力部分!I$26/2)/入力部分!I$34)^2) -> 0.0001501651469 | S182: 0.02642906586 | V182: 176 | W182: =1/入力部分!$I$35/(2*3.14)^0.5*EXP(-1/2*((V182-入力部分!$I$27/2)/入力部分!$I$35)^2) -> 6.771190697e-29 | X182: 1.191729563e-26
H183: 177 | I183: =(入力部分!D$7*M183+入力部分!D$8*R183+入力部分!D$9*W183)/(入力部分!D$7+入力部分!D$8+入力部分!D$9) -> 0.001392436167 | L183: 177 | M183: =1/入力部分!I$33/(2*3.14)^0.5*EXP(-1/2*((L183-入力部分!I$25)/入力部分!I$33)^2) -> 0.003571636059 | N183: 0.6321795825 | Q183: 177 | R183: =1/入力部分!I$34/(2*3.14)^0.5*EXP(-1/2*((Q183-入力部分!I$26/2)/入力部分!I$34)^2) -> 0.0001415270516 | S183: 0.02505028813 | V183: 177 | W183: =1/入力部分!$I$35/(2*3.14)^0.5*EXP(-1/2*((V183-入力部分!$I$27/2)/入力部分!$I$35)^2) -> 3.230629306e-29 | X183: 5.718213872e-27
H184: 178 | I184: =(入力部分!D$7*M184+入力部分!D$8*R184+入力部分!D$9*W184)/(入力部分!D$7+入力部分!D$8+入力部分!D$9) -> 0.001384813593 | L184: 178 | M184: =1/入力部分!I$33/(2*3.14)^0.5*EXP(-1/2*((L184-入力部分!I$25)/入力部分!I$33)^2) -> 0.003559508275 | N184: 0.6335924729 | Q184: 178 | R184: =1/入力部分!I$34/(2*3.14)^0.5*EXP(-1/2*((Q184-入力部分!I$26/2)/入力部分!I$34)^2) -> 0.0001333279732 | S184: 0.02373237923 | V184: 178 | W184: =1/入力部分!$I$35/(2*3.14)^0.5*EXP(-1/2*((V184-入力部分!$I$27/2)/入力部分!$I$35)^2) -> 1.534542829e-29 | X184: 2.731486236e-27
H185: 179 | I185: =(入力部分!D$7*M185+入力部分!D$8*R185+入力部分!D$9*W185)/(入力部分!D$7+入力部分!D$8+入力部分!D$9) -> 0.001377243492 | L185: 179 | M185: =1/入力部分!I$33/(2*3.14)^0.5*EXP(-1/2*((L185-入力部分!I$25)/入力部分!I$33)^2) -> 0.003547099924 | N185: 0.6349308864 | Q185: 179 | R185: =1/入力部分!I$34/(2*3.14)^0.5*EXP(-1/2*((Q185-入力部分!I$26/2)/入力部分!I$34)^2) -> 0.0001255493878 | S185: 0.02247334042 | V185: 179 | W185: =1/入力部分!$I$35/(2*3.14)^0.5*EXP(-1/2*((V185-入力部分!$I$27/2)/入力部分!$I$35)^2) -> 7.256725613e-30 | X185: 1.298953885e-27
H186: 180 | I186: =(入力部分!D$7*M186+入力部分!D$8*R186+入力部分!D$9*W186)/(入力部分!D$7+入力部分!D$8+入力部分!D$9) -> 0.001369720331 | L186: 180 | M186: =1/入力部分!I$33/(2*3.14)^0.5*EXP(-1/2*((L186-入力部分!I$25)/入力部分!I$33)^2) -> 0.003534414232 | N186: 0.6361945617 | Q186: 180 | R186: =1/入力部分!I$34/(2*3.14)^0.5*EXP(-1/2*((Q186-入力部分!I$26/2)/入力部分!I$34)^2) -> 0.000118173317 | S186: 0.02127119705 | V186: 180 | W186: =1/入力部分!$I$35/(2*3.14)^0.5*EXP(-1/2*((V186-入力部分!$I$27/2)/入力部分!$I$35)^2) -> 3.416427369e-30 | X186: 6.149569265e-28
H187: 181 | I187: =(入力部分!D$7*M187+入力部分!D$8*R187+入力部分!D$9*W187)/(入力部分!D$7+入力部分!D$8+入力部分!D$9) -> 0.001362238805 | L187: 181 | M187: =1/入力部分!I$33/(2*3.14)^0.5*EXP(-1/2*((L187-入力部分!I$25)/入力部分!I$33)^2) -> 0.003521454487 | N187: 0.6373832622 | Q187: 181 | R187: =1/入力部分!I$34/(2*3.14)^0.5*EXP(-1/2*((Q187-入力部分!I$26/2)/入力部分!I$34)^2) -> 0.0001111823262 | S187: 0.02012400104 | V187: 181 | W187: =1/入力部分!$I$35/(2*3.14)^0.5*EXP(-1/2*((V187-入力部分!$I$27/2)/入力部分!$I$35)^2) -> 1.601302881e-30 | X187: 2.898358215e-28
H188: 182 | I188: =(入力部分!D$7*M188+入力部分!D$8*R188+入力部分!D$9*W188)/(入力部分!D$7+入力部分!D$8+入力部分!D$9) -> 0.001354793837 | L188: 182 | M188: =1/入力部分!I$33/(2*3.14)^0.5*EXP(-1/2*((L188-入力部分!I$25)/入力部分!I$33)^2) -> 0.003508224042 | N188: 0.6384967757 | Q188: 182 | R188: =1/入力部分!I$34/(2*3.14)^0.5*EXP(-1/2*((Q188-入力部分!I$26/2)/入力部分!I$34)^2) -> 0.0001045595224 | S188: 0.01902983307 | V188: 182 | W188: =1/入力部分!$I$35/(2*3.14)^0.5*EXP(-1/2*((V188-入力部分!$I$27/2)/入力部分!$I$35)^2) -> 7.472132766e-31 | X188: 1.359928163e-28
H189: 183 | I189: =(入力部分!D$7*M189+入力部分!D$8*R189+入力部分!D$9*W189)/(入力部分!D$7+入力部分!D$8+入力部分!D$9) -> 0.001347380572 | L189: 183 | M189: =1/入力部分!I$33/(2*3.14)^0.5*EXP(-1/2*((L189-入力部分!I$25)/入力部分!I$33)^2) -> 0.003494726309 | N189: 0.6395349145 | Q189: 183 | R189: =1/入力部分!I$34/(2*3.14)^0.5*EXP(-1/2*((Q189-入力部分!I$26/2)/入力部分!I$34)^2) -> 9.828855027e-05 | S189: 0.0179868047 | V189: 183 | W189: =1/入力部分!$I$35/(2*3.14)^0.5*EXP(-1/2*((V189-入力部分!$I$27/2)/入力部分!$I$35)^2) -> 3.471246678e-31 | X189: 6.35238142e-29
H190: 184 | I190: =(入力部分!D$7*M190+入力部分!D$8*R190+入力部分!D$9*W190)/(入力部分!D$7+入力部分!D$8+入力部分!D$9) -> 0.00133999438 | L190: 184 | M190: =1/入力部分!I$33/(2*3.14)^0.5*EXP(-1/2*((L190-入力部分!I$25)/入力部分!I$33)^2) -> 0.003480964759 | N190: 0.6404975157 | Q190: 184 | R190: =1/入力部分!I$34/(2*3.14)^0.5*EXP(-1/2*((Q190-入力部分!I$26/2)/入力部分!I$34)^2) -> 9.235358788e-05 | S190: 0.01699306017 | V190: 184 | W190: =1/入力部分!$I$35/(2*3.14)^0.5*EXP(-1/2*((V190-入力部分!$I$27/2)/入力部分!$I$35)^2) -> 1.605447753e-31 | X190: 2.954023865e-29
H191: 185 | I191: =(入力部分!D$7*M191+入力部分!D$8*R191+入力部分!D$9*W191)/(入力部分!D$7+入力部分!D$8+入力部分!D$9) -> 0.001332630849 | L191: 185 | M191: =1/入力部分!I$33/(2*3.14)^0.5*EXP(-1/2*((L191-入力部分!I$25)/入力部分!I$33)^2) -> 0.003466942924 | N191: 0.6413844409 | Q191: 185 | R191: =1/入力部分!I$34/(2*3.14)^0.5*EXP(-1/2*((Q191-入力部分!I$26/2)/入力部分!I$34)^2) -> 8.673934117e-05 | S191: 0.01604677812 | V191: 185 | W191: =1/入力部分!$I$35/(2*3.14)^0.5*EXP(-1/2*((V191-入力部分!$I$27/2)/入力部分!$I$35)^2) -> 7.392250553e-32 | X191: 1.367566352e-29
H192: 186 | I192: =(入力部分!D$7*M192+入力部分!D$8*R192+入力部分!D$9*W192)/(入力部分!D$7+入力部分!D$8+入力部分!D$9) -> 0.001325285785 | L192: 186 | M192: =1/入力部分!I$33/(2*3.14)^0.5*EXP(-1/2*((L192-入力部分!I$25)/入力部分!I$33)^2) -> 0.003452664389 | N192: 0.6421955764 | Q192: 186 | R192: =1/入力部分!I$34/(2*3.14)^0.5*EXP(-1/2*((Q192-入力部分!I$26/2)/入力部分!I$34)^2) -> 8.14310379e-05 | S192: 0.01514617305 | V192: 186 | W192: =1/入力部分!$I$35/(2*3.14)^0.5*EXP(-1/2*((V192-入力部分!$I$27/2)/入力部分!$I$35)^2) -> 3.388652091e-32 | X192: 6.302892888e-30
H193: 187 | I193: =(入力部分!D$7*M193+入力部分!D$8*R193+入力部分!D$9*W193)/(入力部分!D$7+入力部分!D$8+入力部分!D$9) -> 0.001317955207 | L193: 187 | M193: =1/入力部分!I$33/(2*3.14)^0.5*EXP(-1/2*((L193-入力部分!I$25)/入力部分!I$33)^2) -> 0.003438132798 | N193: 0.6429308332 | Q193: 187 | R193: =1/入力部分!I$34/(2*3.14)^0.5*EXP(-1/2*((Q193-入力部分!I$26/2)/入力部分!I$34)^2) -> 7.641442076e-05 | S193: 0.01428949668 | V193: 187 | W193: =1/入力部分!$I$35/(2*3.14)^0.5*EXP(-1/2*((V193-入力部分!$I$27/2)/入力部分!$I$35)^2) -> 1.546489903e-32 | X193: 2.891936119e-30
H194: 188 | I194: =(入力部分!D$7*M194+入力部分!D$8*R194+入力部分!D$9*W194)/(入力部分!D$7+入力部分!D$8+入力部分!D$9) -> 0.001310635344 | L194: 188 | M194: =1/入力部分!I$33/(2*3.14)^0.5*EXP(-1/2*((L194-入力部分!I$25)/入力部分!I$33)^2) -> 0.003423351845 | N194: 0.6435901468 | Q194: 188 | R194: =1/入力部分!I$34/(2*3.14)^0.5*EXP(-1/2*((Q194-入力部分!I$26/2)/入力部分!I$34)^2) -> 7.167573989e-05 | S194: 0.0134750391 | V194: 188 | W194: =1/入力部分!$I$35/(2*3.14)^0.5*EXP(-1/2*((V194-入力部分!$I$27/2)/入力部分!$I$35)^2) -> 7.026466786e-33 | X194: 1.320975756e-30
H195: 189 | I195: =(入力部分!D$7*M195+入力部分!D$8*R195+入力部分!D$9*W195)/(入力部分!D$7+入力部分!D$8+入力部分!D$9) -> 0.001303322633 | L195: 189 | M195: =1/入力部分!I$33/(2*3.14)^0.5*EXP(-1/2*((L195-入力部分!I$25)/入力部分!I$33)^2) -> 0.003408325278 | N195: 0.6441734775 | Q195: 189 | R195: =1/入力部分!I$34/(2*3.14)^0.5*EXP(-1/2*((Q195-入力部分!I$26/2)/入力部分!I$34)^2) -> 6.720174467e-05 | S195: 0.01270112974 | V195: 189 | W195: =1/入力部分!$I$35/(2*3.14)^0.5*EXP(-1/2*((V195-入力部分!$I$27/2)/入力部分!$I$35)^2) -> 3.178313325e-33 | X195: 6.007012185e-31
H196: 190 | I196: =(入力部分!D$7*M196+入力部分!D$8*R196+入力部分!D$9*W196)/(入力部分!D$7+入力部分!D$8+入力部分!D$9) -> 0.001296013713 | L196: 190 | M196: =1/入力部分!I$33/(2*3.14)^0.5*EXP(-1/2*((L196-入力部分!I$25)/入力部分!I$33)^2) -> 0.003393056894 | N196: 0.6446808099 | Q196: 190 | R196: =1/入力部分!I$34/(2*3.14)^0.5*EXP(-1/2*((Q196-入力部分!I$26/2)/入力部分!I$34)^2) -> 6.29796751e-05 | S196: 0.01196613827 | V196: 190 | W196: =1/入力部分!$I$35/(2*3.14)^0.5*EXP(-1/2*((V196-入力部分!$I$27/2)/入力部分!$I$35)^2) -> 1.431285337e-33 | X196: 2.71944214e-31
H197: 191 | I197: =(入力部分!D$7*M197+入力部分!D$8*R197+入力部分!D$9*W197)/(入力部分!D$7+入力部分!D$8+入力部分!D$9) -> 0.001288705423 | L197: 191 | M197: =1/入力部分!I$33/(2*3.14)^0.5*EXP(-1/2*((L197-入力部分!I$25)/入力部分!I$33)^2) -> 0.003377550541 | N197: 0.6451121534 | Q197: 191 | R197: =1/入力部分!I$34/(2*3.14)^0.5*EXP(-1/2*((Q197-入力部分!I$26/2)/入力部分!I$34)^2) -> 5.899725257e-05 | S197: 0.01126847524 | V197: 191 | W197: =1/入力部分!$I$35/(2*3.14)^0.5*EXP(-1/2*((V197-入力部分!$I$27/2)/入力部分!$I$35)^2) -> 6.416903935e-34 | X197: 1.225628652e-31
H198: 192 | I198: =(入力部分!D$7*M198+入力部分!D$8*R198+入力部分!D$9*W198)/(入力部分!D$7+入力部分!D$8+入力部分!D$9) -> 0.001281394794 | L198: 192 | M198: =1/入力部分!I$33/(2*3.14)^0.5*EXP(-1/2*((L198-入力部分!I$25)/入力部分!I$33)^2) -> 0.003361810113 | N198: 0.6454675417 | Q198: 192 | R198: =1/入力部分!I$34/(2*3.14)^0.5*EXP(-1/2*((Q198-入力部分!I$26/2)/入力部分!I$34)^2) -> 5.524267033e-05 | S198: 0.0106065927 | V198: 192 | W198: =1/入力部分!$I$35/(2*3.14)^0.5*EXP(-1/2*((V198-入力部分!$I$27/2)/入力部分!$I$35)^2) -> 2.864142724e-34 | X198: 5.49915403e-32
H199: 193 | I199: =(入力部分!D$7*M199+入力部分!D$8*R199+入力部分!D$9*W199)/(入力部分!D$7+入力部分!D$8+入力部分!D$9) -> 0.00127407905 | L199: 193 | M199: =1/入力部分!I$33/(2*3.14)^0.5*EXP(-1/2*((L199-入力部分!I$25)/入力部分!I$33)^2) -> 0.003345839549 | N199: =L199*$M199 -> 0.645747033 | Q199: 193 | R199: =1/入力部分!I$34/(2*3.14)^0.5*EXP(-1/2*((Q199-入力部分!I$26/2)/入力部分!I$34)^2) -> 5.170458342e-05 | S199: =Q199*$R199 -> 0.009978984601 | V199: 193 | W199: =1/入力部分!$I$35/(2*3.14)^0.5*EXP(-1/2*((V199-入力部分!$I$27/2)/入力部分!$I$35)^2) -> 1.272722072e-34 | X199: =V199*$W199 -> 2.456353599e-32
H200: 194 | I200: =(入力部分!D$7*M200+入力部分!D$8*R200+入力部分!D$9*W200)/(入力部分!D$7+入力部分!D$8+入力部分!D$9) -> 0.001266755599 | L200: 194 | M200: =1/入力部分!I$33/(2*3.14)^0.5*EXP(-1/2*((L200-入力部分!I$25)/入力部分!I$33)^2) -> 0.003329642832 | N200: 0.6459507094 | Q200: 194 | R200: =1/入力部分!I$34/(2*3.14)^0.5*EXP(-1/2*((Q200-入力部分!I$26/2)/入力部分!I$34)^2) -> 4.837209839e-05 | S200: 0.009384187087 | V200: 194 | W200: =1/入力部分!$I$35/(2*3.14)^0.5*EXP(-1/2*((V200-入力部分!$I$27/2)/入力部分!$I$35)^2) -> 5.630439527e-35 | X200: 1.092305268e-32
H201: 195 | I201: =(入力部分!D$7*M201+入力部分!D$8*R201+入力部分!D$9*W201)/(入力部分!D$7+入力部分!D$8+入力部分!D$9) -> 0.001259422032 | L201: 195 | M201: =1/入力部分!I$33/(2*3.14)^0.5*EXP(-1/2*((L201-入力部分!I$25)/入力部分!I$33)^2) -> 0.003313223988 | N201: 0.6460786777 | Q201: 195 | R201: =1/入力部分!I$34/(2*3.14)^0.5*EXP(-1/2*((Q201-入力部分!I$26/2)/入力部分!I$34)^2) -> 4.523476264e-05 | S201: 0.008820778715 | V201: 195 | W201: =1/入力部分!$I$35/(2*3.14)^0.5*EXP(-1/2*((V201-入力部分!$I$27/2)/入力部分!$I$35)^2) -> 2.479823797e-35 | X201: 4.835656403e-33
... 305 more rows

Sheet 簡易マニュアル
C3: 露出高推定モデル（混合粒径版） マニュアル
C5: １．各区分の存在割合（粒度加積曲線または被度割合をもとに算出）を
C6: セルD7～D11に入力します（入力範囲：0～1）
C7: 必ず入力が必要です
C8: ２．各区分の代表粒径を(セルD17～D21)に入力します（入力範囲：１～５００ mm）
C9: なければ、Wentworthの粒径区分に基づき自動入力します
C10: ３．各区分の代表高さを（セルD25～D29）に入力します（入力範囲：１～３００ mm）
C11: なければ、代表粒径×0.5で近似計算します
C12: ４．各区分の標準偏差の係数を（セルD33～D37）に入力します（入力範囲：0～1）
C13: なければ、代表粒径×0.3で近似計算します
